Workbook

Sheet Inputs
A1: This excel sheet uses MACRO's. You will need to enable them before proceeding. Zoom each sheet according to your convenience
A3: Read and complete entries in this column first
A4: Fill only cell in green | D4: The corpus that you enter will divided into 5 buckets, that is different instruments as listed below.
A5: Current monthly expenses | B5: 35000 | D5: Enter the % allocation to each bucket. Bucket 1 represents a fixed income instrument like a FD. So returns will not vary
A6: Time to retirement | B6: 0 | D6: For the other buckets you need to enter an average return and variation from this average (explained below)
A7: inflation prior retirement | B7: 0.08 | D7: The simulator will randomly generate (uncorrelated) returns for each year in retirement based on the input average return and variation
A8: Years in retirement | B8: 40 | D8: Income for first few retirement years will come from bucket 1. This allows enough time for the sum invested in other buckets
A9: inflation post-retirement | B9: 0.08 | D9: to appreciate. You can transfer from buckets 2-5 to bucket 1 if (a) you have made good returns in a year or (b) you don't have
A10: Annual expenses in 1st year of retirement | B10: =B5*12*(1+B7)^(B6) -> 420000 | D10: enough funds in bucket 1 to continue. You can transfer sums among buckets 2-5.
A11: Average return for post-retirement investments | B11: 0.08 | D11: Usually it is recommend that one makes a transfer to bucket 1 only if the average compounded rate of return is close to historcial
A12: Total corpus needed to meet expenses | B12: =PV((1+retroi)/(1+rinf)-1,k,-prepen1,,1) -> 16800000 | D12: returns (10-15% approx.). Unfortunately inflation in India hovers around 8% and this may not work
A13: Thus while the corpus grows at an average rate you draw | D13: This approach is known as defined withdrawals strategy or the retirement bucket strategy
A14: from it each year accoring to your expenses (indexed to inflation). | D14: The idea of the simulator is to try and prolong the life of the corpus (you chose!) while accouting for inflation-indexed expenses.
A15: This corpus will become zero at the end of retirement period | D15: With intelligent transfers can you beat the standard withdrawal method? If you are not used to equity investing then
A16: This is known as the systematic withdrawals strategy | D16: you will need to try several times! Don't give up. This strategy can make a big difference to your retirement plan
A17: Is there a way to cope with a lower corpus?
A18: Is there a way to make the corpus last longer? | E18: Instrument | F18: Allocation | G18: Fixed Return | H18: This allocation (bucket 1) will approx. last for (years)*
A19: This simulator attempts to see if this is possible* | D19: Bucket 1 | E19: Fixed Income (Bank FD) | F19: 0.5 | G19: 0.06 | H19: =NPER((1+_min1)/(1+rinf)-1,-B33,F19*B20,,1) -> 17.48476531
A20: Enter corpus you think will fund your retirement | B20: 16800000 | G20: Average Return | H20: Variation from average return (std. dev.)
A21: If you don't want to use the above amt take a guess | D21: Bucket 2 | E21: Debt Fund | F21: 0.1 | G21: 0.08 | H21: 0.02 | O21: =B20*alloc1/100000 -> 84
A22: Rememeber it would be tough to cope with a much lower corpus | D22: Bucket 3 | E22: Hybrid: Balanced Fund | F22: 0.2 | G22: 0.09 | H22: 0.15 | O22: =ROUND(Inputs!F19*Inputs!B20,0)/100000 -> 84
D23: Bucket 4 | E23: Large-cap (stocks/MF) | F23: 0.1 | G23: 0.1 | H23: 0.3 | O23: =ROUND(Inputs!F21*Inputs!B20,0)/100000 -> 16.8
A24: If you are going to receive an annuity ensure the corpus amount you enter | D24: Bucket 5 | E24: Mid-/Small-cap (stocks/MF) | F24: 0.1 | G24: 0.12 | H24: 0.4
A25: above does not include the sum that will be used to provide the annuity | D25: * The idea is to use this time to let the sum in other buckets appreciate AND transfer at oppurtune times into bucket 1. Recommended time 8-10 years.
A26: Enter the annuity or pension you will receive | D26: Important: If the allocation column turns red, ensure the allocations add up to 100% before proceeding
A27: This is constant throughout retirement | B27: 10000 | D27: Note on Variation from average return: Suppose we consider an average of 15% and variation (or standard deviation of 40%)
A28: Enter annual income from other sources during | D28: If we use a so-called normal distribution (the most common in nature) then about 68% of all return will lie centered about the average
A29: 1st year of retirement | D29: return. Such returns will range from (15%-20%) to (15% + 20%) or -5% to 35%. Here 20% is half the standard deviation. Lower the
A30: Annual rate of increase of this income | B30: 0.01 | D30: standard deviation lower the volatility. How justified are we in using a normal distribution? It works reasonably with US
D31: market data. However we don't have enough data on Indian markets to see if this is suitable. However given the omnipresence of such
A32: Net annual expenses to be covered from corpus | D32: distributions in nature it is a safe bet as long as we keep in mind real life is more complicated than we can ever imagine!
A33: in the first year of retirement | B33: =(prepen1)-(pension)-(income) -> 410000
A35: Once you have read & completed the entried in this sheet, proceed to the 'instructions' page to learn how to use the the simulator. You could then proceed to the 'Simulator' page
A37: Systemactic withdrawals can be made in two ways: One with fixed average return as mentioned above or it can be made with varying returns from different buckets.
A38: If buckets are used the (weighted) average of returns from each bucket is used. The simulator calculates the total corpus in each year of retirement using all the 3 methods.
A40: * Please remember this is a simulation tool. It presents a series of situations with high volatility in returns to help you understand the factors that affect retirement corpus management. Althought subect to reasonable
A41: assumptions it can never susbtitute for real life scenarios, The take home message is managing a retirement corpus is an active exercise. Passive statergies like relying on annuities or a pension will not work for most!

Sheet Instructions - Simulator sheet
A1: 1. To obtain a fresh set of random returns press this
L2: 2. To advance to the next year press this | T2: 3.For the same interest rate data set click this to redo the exercise!
A5: 4. Before advancing remember to review: (a). balances in each bucket.
A6: (b). compounded annual growth rate (CAGR) of the buckets.
A7: A good thumb rule is to sell if the CAGR is close to or above
A8: the average rate of each bucket you have entered in the 'Inputs' sheet
A20: 6.In the screenshot 21 is the current year. However bucket 1 has funds only
A21: up to year 20. So you cannot proceed unless you transfer funds into bucket 1
A22: If funds are not available its game over!
A24: 7. The annual corpus obtained by three stratergies are plotted here to
A25: evaluate the progress of the bucket statergy
A26: To accommodate the plot only the last years in the table will be displayed

Sheet Simulator
AO1: =IF(Inputs!F19+Inputs!F21+Inputs!F22+Inputs!F23+Inputs!F24=100%,1,0) -> 1
E3: Compound Annual Growth Rate | O3: Current Year | Q3: =MAX(AQ12:AQ111) -> 0 | AN3: 14 | AO3: =SUM(AQ12:AQ111) -> 0
E4: Bucket 1 | F4: Bucket 2 | H4: Bucket 3 | J4: Bucket 4 | M4: Bucket 5 | O4: Bucket 1 can support expenses up to year | S4: =SUM(AN12:AN1111)-1 -> 17 | U4: If cells in the 'transfers' coumns turn red it means you are trying to transfer
E5: =_min1 -> 0.06 | O5: To continue transfer | Q5: =SUM(AM12:AM111) -> 8.44007583 | R5: lakhs to bucket 1 | U5: more than the available balance. Decrease amt until the 'red' goes away | AO5: 23
D6: Random Annual Returns | O6: BALANCES (Lakhs) | U6: TRANSFERS (Lakhs) | AO6: Show
B7: Net annual | E7: Bucket 1 | F7: Bucket 2 | H7: Bucket 3 | J7: Bucket 4 | M7: Bucket 5 | O7: Bucket 1 | P7: Bucket 2 | Q7: Bucket 3 | R7: Bucket 4 | S7: Bucket 5 | U7: Bucket 2 | W7: Bucket 3 | Y7: Bucket 4 | AA7: Bucket 5 | AO7: Hide
B8: expenses | E8: Fixed | F8: Debt Fund | H8: Hybrid | J8: Large-cap | M8: Mid/Small | O8: Fixed | P8: Debt Fund | Q8: Hybrid | R8: Large-cap | S8: Mid/Small | U8: Debt Fund | W8: Hybrid | Y8: Large-cap | AA8: Mid/Small Cap
B9: that will be | E9: (eg. FDs) | H9: Bal. Fund | J9: Stocks/MF | M9: Stocks/MF | O9: (eg. FDs) | Q9: Bal. Fund | R9: Stocks/MF | S9: Stocks/MF | W9: Balanced Fund | Y9: Stocks/MF | AA9: Stocks/MF | AO9: Bucket 2
B10: covered | E10: Income | M10: Cap | O10: Income | S10: Cap | U10: Transfers to | W10: Transfers to | Y10: Transfers to | AA10: Transfers to | AD10: Year | AO10: Bucket 3 | AR10: Bucket | AS10: sys wit | AT10: sys wit | AU10: Your corpus | AV10: B2 | AX10: B3 | AZ10: B4 | BB10: B5
A11: Year | B11: by corpus | U11: Bucket 1 | V11: Bucket 3 | W11: Bucket 1 | X11: Bucket 2 | Y11: Bucket 1 | Z11: Bucket 2 | AA11: Bucket 1 | AB11: Bucket 2 | AD11: Year | AO11: Bucket 4 | AR11: strategy | AS11: avg ret | AT11: rand ret | AW11: CAGR | AY11: CAGR | BA11: CAGR | BC11: CAGR
A12: 0 | B12: =(prepen1*(1+rinf)^A12/100000)-(pension/100000)-(income*(1+incrate)^A12/100000) -> 4.1 | O12: =ROUND(Inputs!F19*Inputs!B20,0)/100000 -> 84 | P12: =ROUND(Inputs!F21*Inputs!B20,0)/100000 -> 16.8 | Q12: =ROUND(Inputs!B20*Inputs!F22,0)/100000 -> 33.6 | R12: =ROUND(Inputs!B20*Inputs!F23,0)/100000 -> 16.8 | S12: =ROUND(Inputs!F24*Inputs!B20,0)/100000 -> 16.8 | AD12: 0 | AO12: Bucket 5 | AR12: =Inputs!B20/100000 -> 168 | AS12: =(Inputs!B20)/100000 -> 168 | AT12: =Inputs!B20/100000 -> 168 | AU12: =(Inputs!B20)/100000 -> 168 | AV12: 1 | AX12: 1 | AZ12: 1 | BB12: 1
A13: =A12+1 -> 1 | B13: =(prepen1*(1+rinf)^(A13-1)/100000)-(pension/100000)-(income*(1+incrate)^(A13-1)/100000) -> 4.1 | D13: =IF(E13<>"",E13,_min1) -> 0.06 | E13: 0.06 | F13: 0.1009859312 | G13: =IF(F13<>"",F13,NORMINV(RAND(),mean2,stdev2)) -> 0.1009859312 | H13: -0.1285156483 | I13: =IF(H13<>"",H13,NORMINV(RAND(),mean3,stdev3)) -> -0.1285156483 | J13: 0.679545209 | K13: =IF(J13<>"",J13,NORMINV(RAND(),mean4,stdev4)) -> 0.679545209 | L13: =IF(M13<>"",M13,NORMINV(RAND(),mean5,stdev5)) -> 0.8789160406 | M13: 0.8789160406 | O13: =ROUND((O12-B13+U12+W12+Y12+AA12)*(1+D13),0) -> 85 | P13: =ROUND((P12-U12-V12+IF(trans3="bucket 2",X12)+IF(trans4="bucket 2",Z12)+IF(trans5="bucket 2",AB12))*(1+F13),0) -> 18 | Q13: =ROUND((Q12-W12-X12+IF(trans2="bucket 3",V12)+IF(trans4="bucket 3",Z12)+IF(trans5="bucket 3",AB12))*(1+H13),0) -> 29 | R13: =ROUND((R12-Y12-Z12+IF(trans2="bucket 4",V12)+IF(trans3="bucket 4",X12)+IF(trans5="bucket 4",AB12))*(1+J13),0) -> 28 | S13: =ROUND((S12-AA12-AB12+IF(trans2="bucket 5",V12)+IF(trans3="bucket 5",X12)+IF(trans4="bucket 5",Z12))*(1+M13),0) -> 32 | AD13: =AD12+1 -> 1 | AH13: =mean4+(stdev4*AJ13) -> 0.1 | AI13: =mean5+stdev5*(AJ13*corr+AK13*((1-corr*corr)^0.5)) ->  | AL13: =(1+alloc1*Simulator!E13+alloc2*Simulator!F13+alloc3*Simulator!H13+alloc4*Simulator!J13+alloc5*Simulator!M13) -> 1.170241588 | AM13: =IF(O13<0,B13-O12,0) -> 0 | AN13: =IF(AM13<>0,A13,0) -> 0 | AR13: =IF(AQ13<>0,IF(SUM(O13:S13)<0,NA(),SUM(O13:S13)),NA()) ->  | AS13: =IF(AQ13<>0,IF(AS12- B13<0,NA(),(AS12-B13)*(1+retroi)),NA()) ->  | AT13: =IF(AQ13<>0,IF((AT12-B13)*(1+alloc1*Simulator!E13+alloc2*Simulator!F13+alloc3*Simulator!H13+alloc4*Simulator!J13+alloc5*Simulator!M13)<0,NA(),(AT12-B13)*(1+alloc1*Simulator!E13+alloc2*Simulator!F13+alloc3*Simulator!H13+alloc4*Simulator!J13+alloc5*Simulator!M13)),NA()) ->  | AU13: =IF(AQ13<>0,IF(AU12-B13<0,NA(),(AU12-B13)*(1+retroi)),NA()) ->  | AV13: =AV12*(1+F13) -> 1.100985931 | AW13: =(AV13/$AV$12)^(1/AQ13)-1 ->  | AX13: =AX12*(1+H13) -> 0.8714843517 | AY13: =(AX13/$AX$12)^(1/AQ13)-1 ->  | AZ13: =AZ12*(1+J13) -> 1.679545209 | BA13: =(AZ13/$AZ$12)^(1/AQ13)-1 ->  | BB13: =BB12*(1+M13) -> 1.878916041 | BC13: =(BB13/$BB$12)^(1/AQ13)-1 -> 
A14: 2 | B14: 4.436 | D14: 0.06 | E14: 0.06 | F14: 0.1070474098 | G14: 0.1070474098 | H14: 0.2808295947 | I14: 0.2808295947 | J14: -0.1724210546 | K14: -0.1724210546 | L14: -0.5886093744 | M14: -0.5886093744 | O14: =ROUND((O13-B14+U13+W13+Y13+AA13)*(1+D14),0) -> 85 | P14: =ROUND((P13-U13-V13+IF(trans3="bucket 2",X13)+IF(trans4="bucket 2",Z13)+IF(trans5="bucket 2",AB13))*(1+F14),0) -> 20 | Q14: 37 | R14: 23 | S14: 13 | AD14: 2 | AL14: =(1+alloc1*Simulator!E14+alloc2*Simulator!F14+alloc3*Simulator!H14+alloc4*Simulator!J14+alloc5*Simulator!M14) -> 1.020767617 | AM14: =IF(SUM($AM$13:AM13)<>0,0,IF(O14<0,B14-O13,0)) -> 0 | AN14: =IF(AM14<>0,A14,0) -> 0 | AR14: =IF(AQ14<>0,IF(SUM(O14:S14)<0,NA(),SUM(O14:S14)),NA()) ->  | AT14: =IF(AQ14<>0,IF((AT13-B14)*(1+alloc1*Simulator!E14+alloc2*Simulator!F14+alloc3*Simulator!H14+alloc4*Simulator!J14+alloc5*Simulator!M14)<0,NA(),(AT13-B14)*(1+alloc1*Simulator!E14+alloc2*Simulator!F14+alloc3*Simulator!H14+alloc4*Simulator!J14+alloc5*Simulator!M14)),NA()) ->  | AV14: =AV13*(1+F14) -> 1.218843623 | AX14: =AX13*(1+H14) -> 1.116222949 | AY14: =(AX14/$AX$12)^(1/AQ14)-1 ->  | AZ14: =AZ13*(1+J14) -> 1.389956253 | BA14: =(AZ14/$AZ$12)^(1/AQ14)-1 ->  | BB14: =BB13*(1+M14) -> 0.7729684454 | BC14: =(BB14/$BB$12)^(1/AQ14)-1 -> 
A15: 3 | B15: 4.79888 | D15: 0.06 | E15: 0.06 | F15: 0.06981754282 | G15: 0.06981754282 | H15: 0.1114410162 | I15: 0.1114410162 | J15: -0.09541685474 | K15: -0.09541685474 | L15: 0.144130855 | M15: 0.144130855 | O15: 85 | P15: 21 | Q15: 41 | R15: 21 | S15: 15 | AD15: 3 | AL15: =(1+alloc1*Simulator!E15+alloc2*Simulator!F15+alloc3*Simulator!H15+alloc4*Simulator!J15+alloc5*Simulator!M15) -> 1.064141358 | AM15: =IF(SUM($AM$13:AM14)<>0,0,IF(O15<0,B15-O14,0)) -> 0 | AN15: 0 | AO15: Bucket 2 | AT15: =IF(AQ15<>0,IF((AT14-B15)*(1+alloc1*Simulator!E15+alloc2*Simulator!F15+alloc3*Simulator!H15+alloc4*Simulator!J15+alloc5*Simulator!M15)<0,NA(),(AT14-B15)*(1+alloc1*Simulator!E15+alloc2*Simulator!F15+alloc3*Simulator!H15+alloc4*Simulator!J15+alloc5*Simulator!M15)),NA()) ->  | AV15: 1.30394029 | AX15: 1.240615969 | AZ15: 1.257330999 | BB15: 0.8843770483
A16: 4 | B16: 5.1907904 | D16: 0.06 | E16: 0.06 | F16: 0.1088498213 | G16: 0.1088498213 | H16: -0.07792439256 | I16: -0.07792439256 | J16: -0.08165754355 | K16: -0.08165754355 | L16: -0.1968738243 | M16: -0.1968738243 | O16: 85 | P16: 23 | Q16: 38 | R16: 19 | S16: 12 | AD16: 4 | AL16: =(1+alloc1*Simulator!E16+alloc2*Simulator!F16+alloc3*Simulator!H16+alloc4*Simulator!J16+alloc5*Simulator!M16) -> 0.9974469668 | AM16: =IF(SUM($AM$13:AM15)<>0,0,IF(O16<0,B16-O15,0)) -> 0 | AN16: 0 | AO16: Bucket 4 | AT16: =IF(AQ16<>0,IF((AT15-B16)*(1+alloc1*Simulator!E16+alloc2*Simulator!F16+alloc3*Simulator!H16+alloc4*Simulator!J16+alloc5*Simulator!M16)<0,NA(),(AT15-B16)*(1+alloc1*Simulator!E16+alloc2*Simulator!F16+alloc3*Simulator!H16+alloc4*Simulator!J16+alloc5*Simulator!M16)),NA()) ->  | AV16: 1.445873958 | AX16: 1.143941723 | AZ16: 1.154660438 | BB16: 0.7102663567
A17: 5 | B17: 5.614053632 | D17: 0.06 | E17: 0.06 | F17: 0.0738273213 | G17: 0.0738273213 | H17: 0.148576749 | I17: 0.148576749 | J17: -0.04629547028 | K17: -0.04629547028 | L17: -0.05087191018 | M17: -0.05087191018 | O17: 84 | P17: 25 | Q17: 44 | R17: 18 | S17: 11 | AD17: 5 | AL17: =(1+alloc1*Simulator!E17+alloc2*Simulator!F17+alloc3*Simulator!H17+alloc4*Simulator!J17+alloc5*Simulator!M17) -> 1.057381344 | AM17: =IF(SUM($AM$13:AM16)<>0,0,IF(O17<0,B17-O16,0)) -> 0 | AN17: 0 | AO17: Bucket 5 | AT17: =IF(AQ17<>0,IF((AT16-B17)*(1+alloc1*Simulator!E17+alloc2*Simulator!F17+alloc3*Simulator!H17+alloc4*Simulator!J17+alloc5*Simulator!M17)<0,NA(),(AT16-B17)*(1+alloc1*Simulator!E17+alloc2*Simulator!F17+alloc3*Simulator!H17+alloc4*Simulator!J17+alloc5*Simulator!M17)),NA()) ->  | AV17: 1.552618959 | AX17: 1.313904865 | AZ17: 1.10120489 | BB17: 0.6741337504
A18: 6 | B18: 6.071177923 | D18: 0.06 | E18: 0.06 | F18: 0.08027629431 | G18: 0.08027629431 | H18: -0.1005663243 | I18: -0.1005663243 | J18: 0.1604676407 | K18: 0.1604676407 | L18: 0.6877100618 | M18: 0.6877100618 | O18: 83 | P18: 27 | Q18: 40 | R18: 21 | S18: 19 | AD18: 6 | AL18: =(1+alloc1*Simulator!E18+alloc2*Simulator!F18+alloc3*Simulator!H18+alloc4*Simulator!J18+alloc5*Simulator!M18) -> 1.102732135 | AM18: =IF(SUM($AM$13:AM17)<>0,0,IF(O18<0,B18-O17,0)) -> 0 | AN18: 0 | AT18: =IF(AQ18<>0,IF((AT17-B18)*(1+alloc1*Simulator!E18+alloc2*Simulator!F18+alloc3*Simulator!H18+alloc4*Simulator!J18+alloc5*Simulator!M18)<0,NA(),(AT17-B18)*(1+alloc1*Simulator!E18+alloc2*Simulator!F18+alloc3*Simulator!H18+alloc4*Simulator!J18+alloc5*Simulator!M18)),NA()) ->  | AV18: 1.677257455 | AX18: 1.181770282 | AZ18: 1.277912641 | BB18: 1.137742313
A19: 7 | B19: 6.564872156 | D19: 0.06 | E19: 0.06 | F19: 0.04727851793 | G19: 0.04727851793 | H19: 0.09558644692 | I19: 0.09558644692 | J19: 0.1965266131 | K19: 0.1965266131 | L19: 0.3270478685 | M19: 0.3270478685 | O19: 81 | P19: 28 | Q19: 44 | R19: 25 | S19: 25 | AD19: 7 | AL19: =(1+alloc1*Simulator!E19+alloc2*Simulator!F19+alloc3*Simulator!H19+alloc4*Simulator!J19+alloc5*Simulator!M19) -> 1.106202589 | AM19: =IF(SUM($AM$13:AM18)<>0,0,IF(O19<0,B19-O18,0)) -> 0 | AN19: 0 | AO19: Bucket 2 | AT19: =IF(AQ19<>0,IF((AT18-B19)*(1+alloc1*Simulator!E19+alloc2*Simulator!F19+alloc3*Simulator!H19+alloc4*Simulator!J19+alloc5*Simulator!M19)<0,NA(),(AT18-B19)*(1+alloc1*Simulator!E19+alloc2*Simulator!F19+alloc3*Simulator!H19+alloc4*Simulator!J19+alloc5*Simulator!M19)),NA()) ->  | AV19: 1.756555702 | AX19: 1.294731505 | AZ19: 1.529056484 | BB19: 1.509838512
A20: 8 | B20: 7.098061929 | D20: 0.06 | E20: 0.06 | F20: 0.05598044736 | G20: 0.05598044736 | H20: -0.04592371244 | I20: -0.04592371244 | J20: -0.398511477 | K20: -0.398511477 | L20: -0.1676661256 | M20: -0.1676661256 | O20: 78 | P20: 30 | Q20: 42 | R20: 15 | S20: 21 | AD20: 8 | AL20: =(1+alloc1*Simulator!E20+alloc2*Simulator!F20+alloc3*Simulator!H20+alloc4*Simulator!J20+alloc5*Simulator!M20) -> 0.969795542 | AM20: =IF(SUM($AM$13:AM19)<>0,0,IF(O20<0,B20-O19,0)) -> 0 | AN20: 0 | AO20: Bucket 3 | AR20: =IF(AQ20=SUM(AN7:AN1106),NA(),IF(AQ20<>0,IF(SUM(O20:S20)<0,NA(),SUM(O20:S20)),NA())) ->  | AT20: =IF(AQ20<>0,IF((AT19-B20)*(1+alloc1*Simulator!E20+alloc2*Simulator!F20+alloc3*Simulator!H20+alloc4*Simulator!J20+alloc5*Simulator!M20)<0,NA(),(AT19-B20)*(1+alloc1*Simulator!E20+alloc2*Simulator!F20+alloc3*Simulator!H20+alloc4*Simulator!J20+alloc5*Simulator!M20)),NA()) ->  | AV20: 1.854888476 | AX20: 1.235272627 | AZ20: 0.919709926 | BB20: 1.256689738
A21: 9 | B21: 7.673906883 | D21: 0.06 | E21: 0.06 | F21: 0.1121495571 | G21: 0.1121495571 | H21: 0.05122241484 | I21: 0.05122241484 | J21: -0.1625956253 | K21: -0.1625956253 | L21: 0.4910203649 | M21: 0.4910203649 | O21: 75 | P21: 33 | Q21: 44 | R21: 13 | S21: 31 | AD21: 9 | AL21: =(1+alloc1*Simulator!E21+alloc2*Simulator!F21+alloc3*Simulator!H21+alloc4*Simulator!J21+alloc5*Simulator!M21) -> 1.084301913 | AM21: =IF(SUM($AM$13:AM20)<>0,0,IF(O21<0,B21-O20,0)) -> 0 | AN21: 0 | AO21: Bucket 5 | AT21: =IF(AQ21<>0,IF((AT20-B21)*(1+alloc1*Simulator!E21+alloc2*Simulator!F21+alloc3*Simulator!H21+alloc4*Simulator!J21+alloc5*Simulator!M21)<0,NA(),(AT20-B21)*(1+alloc1*Simulator!E21+alloc2*Simulator!F21+alloc3*Simulator!H21+alloc4*Simulator!J21+alloc5*Simulator!M21)),NA()) ->  | AV21: 2.062913397 | AX21: 1.298546274 | AZ21: 0.7701691155 | BB21: 1.873749992
A22: 10 | B22: 8.295819434 | D22: 0.06 | E22: 0.06 | F22: 0.04778287141 | G22: 0.04778287141 | H22: 0.2076143923 | I22: 0.2076143923 | J22: 0.1669008505 | K22: 0.1669008505 | L22: 0.1146382642 | M22: 0.1146382642 | O22: 71 | P22: 35 | Q22: 53 | R22: 15 | S22: 35 | AD22: 10 | AL22: =(1+alloc1*Simulator!E22+alloc2*Simulator!F22+alloc3*Simulator!H22+alloc4*Simulator!J22+alloc5*Simulator!M22) -> 1.104455077 | AM22: =IF(SUM($AM$13:AM21)<>0,0,IF(O22<0,B22-O21,0)) -> 0 | AN22: 0 | AT22: =IF(AQ22<>0,IF((AT21-B22)*(1+alloc1*Simulator!E22+alloc2*Simulator!F22+alloc3*Simulator!H22+alloc4*Simulator!J22+alloc5*Simulator!M22)<0,NA(),(AT21-B22)*(1+alloc1*Simulator!E22+alloc2*Simulator!F22+alloc3*Simulator!H22+alloc4*Simulator!J22+alloc5*Simulator!M22)),NA()) ->  | AV22: 2.161485323 | AX22: 1.56814317 | AZ22: 0.8987109959 | BB22: 2.088553439
A23: 11 | B23: 8.967484989 | D23: 0.06 | E23: 0.06 | F23: 0.06622315139 | G23: 0.06622315139 | H23: 0.1776696103 | I23: 0.1776696103 | J23: 0.4432583753 | K23: 0.4432583753 | L23: 0.4683094588 | M23: 0.4683094588 | O23: 66 | P23: 37 | Q23: 62 | R23: 22 | S23: 51 | AD23: 11 | AL23: =(1+alloc1*Simulator!E23+alloc2*Simulator!F23+alloc3*Simulator!H23+alloc4*Simulator!J23+alloc5*Simulator!M23) -> 1.163313021 | AM23: =IF(SUM($AM$13:AM22)<>0,0,IF(O23<0,B23-O22,0)) -> 0 | AN23: 0 | AT23: =IF(AQ23<>0,IF((AT22-B23)*(1+alloc1*Simulator!E23+alloc2*Simulator!F23+alloc3*Simulator!H23+alloc4*Simulator!J23+alloc5*Simulator!M23)<0,NA(),(AT22-B23)*(1+alloc1*Simulator!E23+alloc2*Simulator!F23+alloc3*Simulator!H23+alloc4*Simulator!J23+alloc5*Simulator!M23)),NA()) ->  | AV23: 2.304625693 | AX23: 1.846754556 | AZ23: 1.297072172 | BB23: 3.06664277
A24: 12 | B24: 9.692883788 | D24: 0.06 | E24: 0.06 | F24: 0.1095837641 | G24: 0.1095837641 | H24: 0.1445814193 | I24: 0.1445814193 | J24: -0.09469113877 | K24: -0.09469113877 | L24: 0.07335285919 | M24: 0.07335285919 | O24: 60 | P24: 41 | Q24: 71 | R24: 20 | S24: 55 | AD24: 12 | AL24: =(1+alloc1*Simulator!E24+alloc2*Simulator!F24+alloc3*Simulator!H24+alloc4*Simulator!J24+alloc5*Simulator!M24) -> 1.067740832 | AM24: =IF(SUM($AM$13:AM23)<>0,0,IF(O24<0,B24-O23,0)) -> 0 | AN24: 0 | AT24: =IF(AQ24<>0,IF((AT23-B24)*(1+alloc1*Simulator!E24+alloc2*Simulator!F24+alloc3*Simulator!H24+alloc4*Simulator!J24+alloc5*Simulator!M24)<0,NA(),(AT23-B24)*(1+alloc1*Simulator!E24+alloc2*Simulator!F24+alloc3*Simulator!H24+alloc4*Simulator!J24+alloc5*Simulator!M24)),NA()) ->  | AV24: 2.557175251 | AX24: 2.113760951 | AZ24: 1.174250931 | BB24: 3.291589785
A25: 13 | B25: 10.47631449 | D25: 0.06 | E25: 0.06 | F25: 0.1067378631 | G25: 0.1067378631 | H25: 0.07042891805 | I25: 0.07042891805 | J25: -0.7140054056 | K25: -0.7140054056 | L25: 0.3449422038 | M25: 0.3449422038 | O25: 52 | P25: 45 | Q25: 76 | R25: 6 | S25: 74 | AD25: 13 | AL25: =(1+alloc1*Simulator!E25+alloc2*Simulator!F25+alloc3*Simulator!H25+alloc4*Simulator!J25+alloc5*Simulator!M25) -> 1.01785325 | AM25: =IF(SUM($AM$13:AM24)<>0,0,IF(O25<0,B25-O24,0)) -> 0 | AN25: 0 | AT25: =IF(AQ25<>0,IF((AT24-B25)*(1+alloc1*Simulator!E25+alloc2*Simulator!F25+alloc3*Simulator!H25+alloc4*Simulator!J25+alloc5*Simulator!M25)<0,NA(),(AT24-B25)*(1+alloc1*Simulator!E25+alloc2*Simulator!F25+alloc3*Simulator!H25+alloc4*Simulator!J25+alloc5*Simulator!M25)),NA()) ->  | AV25: 2.830122673 | AX25: 2.262630848 | AZ25: 0.3358294187 | BB25: 4.426998019
A26: 14 | B26: 11.32241965 | D26: 0.06 | E26: 0.06 | F26: 0.07803141238 | G26: 0.07803141238 | H26: -0.3339142768 | I26: -0.3339142768 | J26: 0.3068889747 | K26: 0.3068889747 | L26: 0.1450625975 | M26: 0.1450625975 | O26: 43 | P26: 49 | Q26: 51 | R26: 8 | S26: 85 | AD26: 14 | AL26: =(1+alloc1*Simulator!E26+alloc2*Simulator!F26+alloc3*Simulator!H26+alloc4*Simulator!J26+alloc5*Simulator!M26) -> 1.016215443 | AM26: =IF(SUM($AM$13:AM25)<>0,0,IF(O26<0,B26-O25,0)) -> 0 | AN26: 0 | AR26: =IF(AQ26=SUM(AN13:AN1112),NA(),IF(AQ26<>0,IF(SUM(O26:S26)<0,NA(),SUM(O26:S26)),NA())) ->  | AT26: =IF(AQ26<>0,IF((AT25-B26)*(1+alloc1*Simulator!E26+alloc2*Simulator!F26+alloc3*Simulator!H26+alloc4*Simulator!J26+alloc5*Simulator!M26)<0,NA(),(AT25-B26)*(1+alloc1*Simulator!E26+alloc2*Simulator!F26+alloc3*Simulator!H26+alloc4*Simulator!J26+alloc5*Simulator!M26)),NA()) ->  | AV26: 3.050961142 | AX26: 1.507106105 | AZ26: 0.4388917647 | BB26: 5.069189851
A27: 15 | B27: 12.23621322 | D27: 0.06 | E27: 0.06 | F27: 0.07430299961 | G27: 0.07430299961 | H27: 0.1687591587 | I27: 0.1687591587 | J27: -0.09018299278 | K27: -0.09018299278 | L27: 0.2908516728 | M27: 0.2908516728 | O27: 33 | P27: 53 | Q27: 60 | R27: 7 | S27: 110 | AD27: 15 | AL27: =(1+alloc1*Simulator!E27+alloc2*Simulator!F27+alloc3*Simulator!H27+alloc4*Simulator!J27+alloc5*Simulator!M27) -> 1.091249 | AM27: =IF(SUM($AM$13:AM26)<>0,0,IF(O27<0,B27-O26,0)) -> 0 | AN27: 0 | AT27: =IF(AQ27<>0,IF((AT26-B27)*(1+alloc1*Simulator!E27+alloc2*Simulator!F27+alloc3*Simulator!H27+alloc4*Simulator!J27+alloc5*Simulator!M27)<0,NA(),(AT26-B27)*(1+alloc1*Simulator!E27+alloc2*Simulator!F27+alloc3*Simulator!H27+alloc4*Simulator!J27+alloc5*Simulator!M27)),NA()) ->  | AV27: 3.277656707 | AX27: 1.761444063 | AZ27: 0.3993111919 | BB27: 6.543572199
A28: 16 | B28: 13.22311028 | D28: 0.06 | E28: 0.06 | F28: 0.06654515391 | G28: 0.06654515391 | H28: 0.256519699 | I28: 0.256519699 | J28: -0.03284143678 | K28: -0.03284143678 | L28: -0.3413234091 | M28: -0.3413234091 | O28: 21 | P28: 57 | Q28: 75 | R28: 7 | S28: 72 | AD28: 16 | AL28: =(1+alloc1*Simulator!E28+alloc2*Simulator!F28+alloc3*Simulator!H28+alloc4*Simulator!J28+alloc5*Simulator!M28) -> 1.050541971 | AM28: =IF(SUM($AM$13:AM27)<>0,0,IF(O28<0,B28-O27,0)) -> 0 | AN28: 0 | AT28: =IF(AQ28<>0,IF((AT27-B28)*(1+alloc1*Simulator!E28+alloc2*Simulator!F28+alloc3*Simulator!H28+alloc4*Simulator!J28+alloc5*Simulator!M28)<0,NA(),(AT27-B28)*(1+alloc1*Simulator!E28+alloc2*Simulator!F28+alloc3*Simulator!H28+alloc4*Simulator!J28+alloc5*Simulator!M28)),NA()) ->  | AV28: 3.495768877 | AX28: 2.213289164 | AZ28: 0.3861972386 | BB28: 4.310097828
A29: 17 | B29: 14.2889591 | D29: 0.06 | E29: 0.06 | F29: 0.0857094078 | G29: 0.0857094078 | H29: 0.07627658356 | I29: 0.07627658356 | J29: 0.4334228163 | K29: 0.4334228163 | L29: 0.2566374725 | M29: 0.2566374725 | O29: 7 | P29: 62 | Q29: 81 | R29: 10 | S29: 90 | AD29: 17 | AL29: =(1+alloc1*Simulator!E29+alloc2*Simulator!F29+alloc3*Simulator!H29+alloc4*Simulator!J29+alloc5*Simulator!M29) -> 1.122832286 | AM29: =IF(SUM($AM$13:AM28)<>0,0,IF(O29<0,B29-O28,0)) -> 0 | AN29: 0 | AT29: =IF(AQ29<>0,IF((AT28-B29)*(1+alloc1*Simulator!E29+alloc2*Simulator!F29+alloc3*Simulator!H29+alloc4*Simulator!J29+alloc5*Simulator!M29)<0,NA(),(AT28-B29)*(1+alloc1*Simulator!E29+alloc2*Simulator!F29+alloc3*Simulator!H29+alloc4*Simulator!J29+alloc5*Simulator!M29)),NA()) ->  | AV29: 3.795389157 | AX29: 2.3821113 | AZ29: 0.5535839334 | BB29: 5.416230441
A30: 18 | B30: 15.44007583 | D30: 0.06 | E30: 0.06 | F30: 0.08575186861 | G30: 0.08575186861 | H30: 0.1459675522 | I30: 0.1459675522 | J30: -0.2257719979 | K30: -0.2257719979 | L30: 0.4324293992 | M30: 0.4324293992 | O30: -9 | P30: 67 | Q30: 93 | R30: 8 | S30: 129 | AD30: 18 | AL30: =(1+alloc1*Simulator!E30+alloc2*Simulator!F30+alloc3*Simulator!H30+alloc4*Simulator!J30+alloc5*Simulator!M30) -> 1.088434437 | AM30: =IF(SUM($AM$13:AM29)<>0,0,IF(O30<0,B30-O29,0)) -> 8.44007583 | AN30: 18 | AT30: =IF(AQ30<>0,IF((AT29-B30)*(1+alloc1*Simulator!E30+alloc2*Simulator!F30+alloc3*Simulator!H30+alloc4*Simulator!J30+alloc5*Simulator!M30)<0,NA(),(AT29-B30)*(1+alloc1*Simulator!E30+alloc2*Simulator!F30+alloc3*Simulator!H30+alloc4*Simulator!J30+alloc5*Simulator!M30)),NA()) ->  | AV30: 4.120850869 | AX30: 2.729822255 | AZ30: 0.4286001827 | BB30: 7.758367717
A31: 19 | B31: 16.6832819 | D31: 0.06 | E31: 0.06 | F31: 0.03108777135 | G31: 0.03108777135 | H31: 0.05424636015 | I31: 0.05424636015 | J31: -0.2623275749 | K31: -0.2623275749 | L31: -0.2085908513 | M31: -0.2085908513 | O31: -27 | P31: 69 | Q31: 98 | R31: 6 | S31: 102 | AD31: 19 | AL31: =(1+alloc1*Simulator!E31+alloc2*Simulator!F31+alloc3*Simulator!H31+alloc4*Simulator!J31+alloc5*Simulator!M31) -> 0.9968662066 | AM31: =IF(SUM($AM$13:AM30)<>0,0,IF(O31<0,B31-O30,0)) -> 0 | AN31: 0 | AT31: =IF(AQ31<>0,IF((AT30-B31)*(1+alloc1*Simulator!E31+alloc2*Simulator!F31+alloc3*Simulator!H31+alloc4*Simulator!J31+alloc5*Simulator!M31)<0,NA(),(AT30-B31)*(1+alloc1*Simulator!E31+alloc2*Simulator!F31+alloc3*Simulator!H31+alloc4*Simulator!J31+alloc5*Simulator!M31)),NA()) ->  | AV31: 4.248958939 | AX31: 2.877905176 | AZ31: 0.3161665362 | BB31: 6.14004319
A32: 20 | B32: 18.02594445 | D32: 0.06 | E32: 0.06 | F32: 0.0999379038 | G32: 0.0999379038 | H32: -0.1100804565 | I32: -0.1100804565 | J32: -0.4167687597 | K32: -0.4167687597 | L32: 0.5820538028 | M32: 0.5820538028 | O32: -48 | P32: 76 | Q32: 87 | R32: 3 | S32: 161 | AD32: 20 | AL32: =(1+alloc1*Simulator!E32+alloc2*Simulator!F32+alloc3*Simulator!H32+alloc4*Simulator!J32+alloc5*Simulator!M32) -> 1.034506203 | AM32: =IF(SUM($AM$13:AM31)<>0,0,IF(O32<0,B32-O31,0)) -> 0 | AN32: 0 | AT32: =IF(AQ32<>0,IF((AT31-B32)*(1+alloc1*Simulator!E32+alloc2*Simulator!F32+alloc3*Simulator!H32+alloc4*Simulator!J32+alloc5*Simulator!M32)<0,NA(),(AT31-B32)*(1+alloc1*Simulator!E32+alloc2*Simulator!F32+alloc3*Simulator!H32+alloc4*Simulator!J32+alloc5*Simulator!M32)),NA()) ->  | AV32: 4.673590988 | AX32: 2.561104061 | AZ32: 0.1843982011 | BB32: 9.713878679
A33: 21 | B33: 19.47602 | D33: 0.06 | E33: 0.06 | F33: 0.07844180298 | G33: 0.07844180298 | H33: -0.05049106456 | I33: -0.05049106456 | J33: 0.5981349253 | K33: 0.5981349253 | L33: -0.1768093089 | M33: -0.1768093089 | O33: -72 | P33: 82 | Q33: 83 | R33: 5 | S33: 133 | AD33: 21 | AL33: =(1+alloc1*Simulator!E33+alloc2*Simulator!F33+alloc3*Simulator!H33+alloc4*Simulator!J33+alloc5*Simulator!M33) -> 1.069878529 | AM33: =IF(SUM($AM$13:AM32)<>0,0,IF(O33<0,B33-O32,0)) -> 0 | AN33: 0 | AT33: =IF(AQ33<>0,IF((AT32-B33)*(1+alloc1*Simulator!E33+alloc2*Simulator!F33+alloc3*Simulator!H33+alloc4*Simulator!J33+alloc5*Simulator!M33)<0,NA(),(AT32-B33)*(1+alloc1*Simulator!E33+alloc2*Simulator!F33+alloc3*Simulator!H33+alloc4*Simulator!J33+alloc5*Simulator!M33)),NA()) ->  | AV33: 5.040195892 | AX33: 2.43179119 | AZ33: 0.2946932053 | BB33: 7.996374503
A34: 22 | B34: 21.0421016 | D34: 0.06 | E34: 0.06 | F34: 0.0564398524 | G34: 0.0564398524 | H34: -0.03564182026 | I34: -0.03564182026 | J34: 0.6649890131 | K34: 0.6649890131 | L34: 0.3918267575 | M34: 0.3918267575 | O34: -99 | P34: 87 | Q34: 80 | R34: 8 | S34: 185 | AD34: 22 | AL34: =(1+alloc1*Simulator!E34+alloc2*Simulator!F34+alloc3*Simulator!H34+alloc4*Simulator!J34+alloc5*Simulator!M34) -> 1.134197198 | AM34: =IF(SUM($AM$13:AM33)<>0,0,IF(O34<0,B34-O33,0)) -> 0 | AN34: 0 | AT34: =IF(AQ34<>0,IF((AT33-B34)*(1+alloc1*Simulator!E34+alloc2*Simulator!F34+alloc3*Simulator!H34+alloc4*Simulator!J34+alloc5*Simulator!M34)<0,NA(),(AT33-B34)*(1+alloc1*Simulator!E34+alloc2*Simulator!F34+alloc3*Simulator!H34+alloc4*Simulator!J34+alloc5*Simulator!M34)),NA()) ->  | AV34: 5.324663804 | AX34: 2.345117726 | AZ34: 0.490660949 | BB34: 11.129568
A35: 23 | B35: 22.73346973 | D35: 0.06 | E35: 0.06 | F35: 0.1201576892 | G35: 0.1201576892 | H35: 0.2794926921 | I35: 0.2794926921 | J35: -0.008809600679 | K35: -0.008809600679 | L35: 0.6892963412 | M35: 0.6892963412 | O35: -129 | P35: 97 | Q35: 102 | R35: 8 | S35: 313 | AD35: 23 | AL35: =(1+alloc1*Simulator!E35+alloc2*Simulator!F35+alloc3*Simulator!H35+alloc4*Simulator!J35+alloc5*Simulator!M35) -> 1.165962981 | AM35: =IF(SUM($AM$13:AM34)<>0,0,IF(O35<0,B35-O34,0)) -> 0 | AN35: 0 | AT35: =IF(AQ35<>0,IF((AT34-B35)*(1+alloc1*Simulator!E35+alloc2*Simulator!F35+alloc3*Simulator!H35+alloc4*Simulator!J35+alloc5*Simulator!M35)<0,NA(),(AT34-B35)*(1+alloc1*Simulator!E35+alloc2*Simulator!F35+alloc3*Simulator!H35+alloc4*Simulator!J35+alloc5*Simulator!M35)),NA()) ->  | AV35: 5.964463103 | AX35: 3.000560992 | AZ35: 0.486338422 | BB35: 18.80113849
A36: 24 | B36: 24.56014731 | D36: 0.06 | E36: 0.06 | F36: 0.07415448888 | G36: 0.07415448888 | H36: 0.07892030649 | I36: 0.07892030649 | J36: 0.1579026681 | K36: 0.1579026681 | L36: -0.2268830345 | M36: -0.2268830345 | O36: -163 | P36: 104 | Q36: 110 | R36: 9 | S36: 242 | AD36: 24 | AL36: =(1+alloc1*Simulator!E36+alloc2*Simulator!F36+alloc3*Simulator!H36+alloc4*Simulator!J36+alloc5*Simulator!M36) -> 1.046301474 | AM36: =IF(SUM($AM$13:AM35)<>0,0,IF(O36<0,B36-O35,0)) -> 0 | AN36: 0 | AT36: =IF(AQ36<>0,IF((AT35-B36)*(1+alloc1*Simulator!E36+alloc2*Simulator!F36+alloc3*Simulator!H36+alloc4*Simulator!J36+alloc5*Simulator!M36)<0,NA(),(AT35-B36)*(1+alloc1*Simulator!E36+alloc2*Simulator!F36+alloc3*Simulator!H36+alloc4*Simulator!J36+alloc5*Simulator!M36)),NA()) ->  | AV36: 6.406754815 | AX36: 3.237366185 | AZ36: 0.5631325564 | BB36: 14.53547914
A37: 25 | B37: 26.5329591 | D37: 0.06 | E37: 0.06 | F37: 0.1219477355 | G37: 0.1219477355 | H37: 0.1723078848 | I37: 0.1723078848 | J37: 0.1933085005 | K37: 0.1933085005 | L37: 0.2683134084 | M37: 0.2683134084 | O37: -201 | P37: 117 | Q37: 129 | R37: 11 | S37: 307 | AD37: 25 | AL37: =(1+alloc1*Simulator!E37+alloc2*Simulator!F37+alloc3*Simulator!H37+alloc4*Simulator!J37+alloc5*Simulator!M37) -> 1.122818541 | AM37: =IF(SUM($AM$13:AM36)<>0,0,IF(O37<0,B37-O36,0)) -> 0 | AN37: 0 | AT37: =IF(AQ37<>0,IF((AT36-B37)*(1+alloc1*Simulator!E37+alloc2*Simulator!F37+alloc3*Simulator!H37+alloc4*Simulator!J37+alloc5*Simulator!M37)<0,NA(),(AT36-B37)*(1+alloc1*Simulator!E37+alloc2*Simulator!F37+alloc3*Simulator!H37+alloc4*Simulator!J37+alloc5*Simulator!M37)),NA()) ->  | AV37: 7.188044057 | AX37: 3.795189905 | AZ37: 0.6719908665 | BB37: 18.43554309
A38: 26 | B38: 28.66359582 | D38: 0.06 | E38: 0.06 | F38: 0.0911224446 | G38: 0.0911224446 | H38: 0.09475952232 | I38: 0.09475952232 | J38: 0.2773532245 | K38: 0.2773532245 | L38: -0.5373625908 | M38: -0.5373625908 | O38: -243 | P38: 128 | Q38: 141 | R38: 14 | S38: 142 | AD38: 26 | AL38: =(1+alloc1*Simulator!E38+alloc2*Simulator!F38+alloc3*Simulator!H38+alloc4*Simulator!J38+alloc5*Simulator!M38) -> 1.032063212 | AM38: =IF(SUM($AM$13:AM37)<>0,0,IF(O38<0,B38-O37,0)) -> 0 | AN38: 0 | AT38: =IF(AQ38<>0,IF((AT37-B38)*(1+alloc1*Simulator!E38+alloc2*Simulator!F38+alloc3*Simulator!H38+alloc4*Simulator!J38+alloc5*Simulator!M38)<0,NA(),(AT37-B38)*(1+alloc1*Simulator!E38+alloc2*Simulator!F38+alloc3*Simulator!H38+alloc4*Simulator!J38+alloc5*Simulator!M38)),NA()) ->  | AV38: 7.843036204 | AX38: 4.154820288 | AZ38: 0.8583697002 | BB38: 8.528971894
A39: 27 | B39: 30.96468349 | D39: 0.06 | E39: 0.06 | F39: 0.08466602073 | G39: 0.08466602073 | H39: 0.07315694996 | I39: 0.07315694996 | J39: 0.8057980015 | K39: 0.8057980015 | L39: 0.3352926345 | M39: 0.3352926345 | O39: -290 | P39: 139 | Q39: 151 | R39: 25 | S39: 190 | AD39: 27 | AL39: =(1+alloc1*Simulator!E39+alloc2*Simulator!F39+alloc3*Simulator!H39+alloc4*Simulator!J39+alloc5*Simulator!M39) -> 1.167207056 | AM39: =IF(SUM($AM$13:AM38)<>0,0,IF(O39<0,B39-O38,0)) -> 0 | AN39: 0 | AT39: =IF(AQ39<>0,IF((AT38-B39)*(1+alloc1*Simulator!E39+alloc2*Simulator!F39+alloc3*Simulator!H39+alloc4*Simulator!J39+alloc5*Simulator!M39)<0,NA(),(AT38-B39)*(1+alloc1*Simulator!E39+alloc2*Simulator!F39+alloc3*Simulator!H39+alloc4*Simulator!J39+alloc5*Simulator!M39)),NA()) ->  | AV39: 8.507074869 | AX39: 4.458774267 | AZ39: 1.550042289 | BB39: 11.38867335
A40: 28 | B40: 33.44985817 | D40: 0.06 | E40: 0.06 | F40: 0.04850977839 | G40: 0.04850977839 | H40: -0.2041699912 | I40: -0.2041699912 | J40: 0.2992624055 | K40: 0.2992624055 | L40: -0.1847778529 | M40: -0.1847778529 | O40: -343 | P40: 146 | Q40: 120 | R40: 32 | S40: 155 | AD40: 28 | AL40: =(1+alloc1*Simulator!E40+alloc2*Simulator!F40+alloc3*Simulator!H40+alloc4*Simulator!J40+alloc5*Simulator!M40) -> 1.005465435 | AM40: =IF(SUM($AM$13:AM39)<>0,0,IF(O40<0,B40-O39,0)) -> 0 | AN40: 0 | AT40: =IF(AQ40<>0,IF((AT39-B40)*(1+alloc1*Simulator!E40+alloc2*Simulator!F40+alloc3*Simulator!H40+alloc4*Simulator!J40+alloc5*Simulator!M40)<0,NA(),(AT39-B40)*(1+alloc1*Simulator!E40+alloc2*Simulator!F40+alloc3*Simulator!H40+alloc4*Simulator!J40+alloc5*Simulator!M40)),NA()) ->  | AV40: 8.919751186 | AW40: =(AV40/$AV$12)^(1/AQ40)-1 ->  | AX40: 3.548426364 | AY40: =(AX40/$AX$12)^(1/AQ40)-1 ->  | AZ40: 2.013911673 | BA40: =(AZ40/$AZ$12)^(1/AQ40)-1 ->  | BB40: 9.284298741 | BC40: =(BB40/$BB$12)^(1/AQ40)-1 -> 
A41: 29 | B41: 36.13384682 | D41: 0.06 | E41: 0.06 | F41: 0.0632623107 | G41: 0.0632623107 | H41: 0.02157494626 | I41: 0.02157494626 | J41: 0.5579498024 | K41: 0.5579498024 | L41: 0.3617110409 | M41: 0.3617110409 | O41: -402 | P41: 155 | Q41: 123 | R41: 50 | S41: 211 | AD41: 29 | AL41: =(1+alloc1*Simulator!E41+alloc2*Simulator!F41+alloc3*Simulator!H41+alloc4*Simulator!J41+alloc5*Simulator!M41) -> 1.132607305 | AM41: =IF(SUM($AM$13:AM40)<>0,0,IF(O41<0,B41-O40,0)) -> 0 | AN41: 0 | AT41: =IF(AQ41<>0,IF((AT40-B41)*(1+alloc1*Simulator!E41+alloc2*Simulator!F41+alloc3*Simulator!H41+alloc4*Simulator!J41+alloc5*Simulator!M41)<0,NA(),(AT40-B41)*(1+alloc1*Simulator!E41+alloc2*Simulator!F41+alloc3*Simulator!H41+alloc4*Simulator!J41+alloc5*Simulator!M41)),NA()) ->  | AV41: 9.484035257 | AX41: 3.624983473 | AZ41: 3.137573293 | BB41: 12.6425321
A42: 30 | B42: 39.03255457 | D42: 0.06 | E42: 0.06 | F42: 0.09972445597 | G42: 0.09972445597 | H42: 0.07919828211 | I42: 0.07919828211 | J42: 0.2089971074 | K42: 0.2089971074 | L42: 0.5597472351 | M42: 0.5597472351 | O42: -467 | P42: 170 | Q42: 133 | R42: 60 | S42: 329 | AD42: 30 | AL42: =(1+alloc1*Simulator!E42+alloc2*Simulator!F42+alloc3*Simulator!H42+alloc4*Simulator!J42+alloc5*Simulator!M42) -> 1.132686536 | AM42: =IF(SUM($AM$13:AM41)<>0,0,IF(O42<0,B42-O41,0)) -> 0 | AN42: 0 | AT42: =IF(AQ42<>0,IF((AT41-B42)*(1+alloc1*Simulator!E42+alloc2*Simulator!F42+alloc3*Simulator!H42+alloc4*Simulator!J42+alloc5*Simulator!M42)<0,NA(),(AT41-B42)*(1+alloc1*Simulator!E42+alloc2*Simulator!F42+alloc3*Simulator!H42+alloc4*Simulator!J42+alloc5*Simulator!M42)),NA()) ->  | AV42: 10.42982551 | AX42: 3.912075936 | AZ42: 3.793317036 | BB42: 19.71915449
A43: 31 | B43: 42.16315893 | D43: 0.06 | E43: 0.06 | F43: 0.05125873676 | G43: 0.05125873676 | H43: 0.02984377409 | I43: 0.02984377409 | J43: 0.1459904381 | K43: 0.1459904381 | L43: 0.8221636046 | M43: 0.8221636046 | O43: -540 | P43: 179 | Q43: 137 | R43: 69 | S43: 599 | AD43: 31 | AL43: =(1+alloc1*Simulator!E43+alloc2*Simulator!F43+alloc3*Simulator!H43+alloc4*Simulator!J43+alloc5*Simulator!M43) -> 1.137910033 | AM43: =IF(SUM($AM$13:AM42)<>0,0,IF(O43<0,B43-O42,0)) -> 0 | AN43: 0 | AT43: =IF(AQ43<>0,IF((AT42-B43)*(1+alloc1*Simulator!E43+alloc2*Simulator!F43+alloc3*Simulator!H43+alloc4*Simulator!J43+alloc5*Simulator!M43)<0,NA(),(AT42-B43)*(1+alloc1*Simulator!E43+alloc2*Simulator!F43+alloc3*Simulator!H43+alloc4*Simulator!J43+alloc5*Simulator!M43)),NA()) ->  | AV43: 10.96444519 | AX43: 4.028827047 | AZ43: 4.347105052 | BB43: 35.93152563
A44: 32 | B44: 45.54421165 | D44: 0.06 | E44: 0.06 | F44: 0.07874415713 | G44: 0.07874415713 | H44: 0.0575367573 | I44: 0.0575367573 | J44: -0.2074047675 | K44: -0.2074047675 | L44: -0.1897445141 | M44: -0.1897445141 | O44: -621 | P44: 193 | Q44: 145 | R44: 55 | S44: 485 | AD44: 32 | AL44: =(1+alloc1*Simulator!E44+alloc2*Simulator!F44+alloc3*Simulator!H44+alloc4*Simulator!J44+alloc5*Simulator!M44) -> 1.009666839 | AM44: =IF(SUM($AM$13:AM43)<>0,0,IF(O44<0,B44-O43,0)) -> 0 | AN44: 0 | AT44: =IF(AQ44<>0,IF((AT43-B44)*(1+alloc1*Simulator!E44+alloc2*Simulator!F44+alloc3*Simulator!H44+alloc4*Simulator!J44+alloc5*Simulator!M44)<0,NA(),(AT43-B44)*(1+alloc1*Simulator!E44+alloc2*Simulator!F44+alloc3*Simulator!H44+alloc4*Simulator!J44+alloc5*Simulator!M44)),NA()) ->  | AV44: 11.82783119 | AX44: 4.260632691 | AZ44: 3.445494739 | BB44: 29.11371576
A45: 33 | B45: =(prepen1*(1+rinf)^(A45-1)/100000)-(pension/100000)-(income*(1+incrate)^(A45-1)/100000) -> 49.19574858 | D45: =IF(E45<>"",E45,_min1) -> 0.06 | E45: 0.06 | F45: 0.08570113165 | G45: =IF(F45<>"",F45,NORMINV(RAND(),mean2,stdev2)) -> 0.08570113165 | H45: 0.04833218545 | I45: =IF(H45<>"",H45,NORMINV(RAND(),mean3,stdev3)) -> 0.04833218545 | J45: 0.2849412473 | K45: =IF(J45<>"",J45,NORMINV(RAND(),mean4,stdev4)) -> 0.2849412473 | L45: =IF(M45<>"",M45,NORMINV(RAND(),mean5,stdev5)) -> -0.3226032163 | M45: -0.3226032163 | O45: -710 | P45: =ROUND((P44-U44-V44+IF(trans3="bucket 2",X44)+IF(trans4="bucket 2",Z44)+IF(trans5="bucket 2",AB44))*(1+F45),0) -> 210 | Q45: =ROUND((Q44-W44-X44+IF(trans2="bucket 3",V44)+IF(trans4="bucket 3",Z44)+IF(trans5="bucket 3",AB44))*(1+H45),0) -> 152 | R45: =ROUND((R44-Y44-Z44+IF(trans2="bucket 4",V44)+IF(trans3="bucket 4",X44)+IF(trans5="bucket 4",AB44))*(1+J45),0) -> 71 | S45: =ROUND((S44-AA44-AB44+IF(trans2="bucket 5",V44)+IF(trans3="bucket 5",X44)+IF(trans4="bucket 5",Z44))*(1+M45),0) -> 329 | AD45: 33 | AL45: =(1+alloc1*Simulator!E45+alloc2*Simulator!F45+alloc3*Simulator!H45+alloc4*Simulator!J45+alloc5*Simulator!M45) -> 1.044470353 | AM45: =IF(SUM($AM$13:AM44)<>0,0,IF(O45<0,B45-O44,0)) -> 0 | AN45: 0 | AS45: =IF(AQ45<>0,IF(AS44- B45<0,NA(),(AS44-B45)*(1+retroi)),NA()) ->  | AT45: =IF(AQ45<>0,IF((AT44-B45)*(1+alloc1*Simulator!E45+alloc2*Simulator!F45+alloc3*Simulator!H45+alloc4*Simulator!J45+alloc5*Simulator!M45)<0,NA(),(AT44-B45)*(1+alloc1*Simulator!E45+alloc2*Simulator!F45+alloc3*Simulator!H45+alloc4*Simulator!J45+alloc5*Simulator!M45)),NA()) ->  | AU45: =IF(AQ45<>0,IF(AU44-B45<0,NA(),(AU44-B45)*(1+retroi)),NA()) ->  | AV45: 12.84148971 | AX45: 4.46655838 | AZ45: 4.427258308 | BB45: 19.72153742
A46: 34 | B46: 53.13940847 | D46: 0.06 | E46: 0.06 | F46: 0.07112298394 | G46: 0.07112298394 | H46: 0.1121792473 | I46: 0.1121792473 | J46: 0.4276916608 | K46: 0.4276916608 | L46: 0.6767162102 | M46: 0.6767162102 | O46: -809 | P46: 225 | Q46: 169 | R46: 101 | S46: 552 | AD46: 34 | AL46: =(1+alloc1*Simulator!E46+alloc2*Simulator!F46+alloc3*Simulator!H46+alloc4*Simulator!J46+alloc5*Simulator!M46) -> 1.169988935 | AM46: =IF(SUM($AM$13:AM45)<>0,0,IF(O46<0,B46-O45,0)) -> 0 | AN46: 0 | AT46: =IF(AQ46<>0,IF((AT45-B46)*(1+alloc1*Simulator!E46+alloc2*Simulator!F46+alloc3*Simulator!H46+alloc4*Simulator!J46+alloc5*Simulator!M46)<0,NA(),(AT45-B46)*(1+alloc1*Simulator!E46+alloc2*Simulator!F46+alloc3*Simulator!H46+alloc4*Simulator!J46+alloc5*Simulator!M46)),NA()) ->  | AV46: 13.75481477 | AX46: 4.967613537 | AZ46: 6.320759767 | BB46: 33.06742147
A47: 35 | B47: 57.39856114 | D47: 0.06 | E47: 0.06 | F47: 0.068250421 | G47: 0.068250421 | H47: 0.266046348 | I47: 0.266046348 | J47: 0.491977183 | K47: 0.491977183 | L47: -0.2441031889 | M47: -0.2441031889 | O47: -918 | P47: 240 | Q47: 214 | R47: 151 | S47: 417 | AD47: 35 | AL47: =(1+alloc1*Simulator!E47+alloc2*Simulator!F47+alloc3*Simulator!H47+alloc4*Simulator!J47+alloc5*Simulator!M47) -> 1.114821711 | AM47: =IF(SUM($AM$13:AM46)<>0,0,IF(O47<0,B47-O46,0)) -> 0 | AN47: 0 | AT47: =IF(AQ47<>0,IF((AT46-B47)*(1+alloc1*Simulator!E47+alloc2*Simulator!F47+alloc3*Simulator!H47+alloc4*Simulator!J47+alloc5*Simulator!M47)<0,NA(),(AT46-B47)*(1+alloc1*Simulator!E47+alloc2*Simulator!F47+alloc3*Simulator!H47+alloc4*Simulator!J47+alloc5*Simulator!M47)),NA()) ->  | AV47: 14.69358667 | AX47: 6.289228977 | AZ47: 9.430429351 | BB47: 24.99555844
A48: 36 | B48: 61.99844604 | D48: 0.06 | E48: 0.06 | F48: 0.08799088758 | G48: 0.08799088758 | H48: 0.334396194 | I48: 0.334396194 | J48: 0.1403366534 | K48: 0.1403366534 | L48: -0.2394244359 | M48: -0.2394244359 | O48: -1039 | P48: 261 | Q48: 286 | R48: 172 | S48: 317 | AD48: 36 | AL48: =(1+alloc1*Simulator!E48+alloc2*Simulator!F48+alloc3*Simulator!H48+alloc4*Simulator!J48+alloc5*Simulator!M48) -> 1.095769549 | AM48: =IF(SUM($AM$13:AM47)<>0,0,IF(O48<0,B48-O47,0)) -> 0 | AN48: 0 | AT48: =IF(AQ48<>0,IF((AT47-B48)*(1+alloc1*Simulator!E48+alloc2*Simulator!F48+alloc3*Simulator!H48+alloc4*Simulator!J48+alloc5*Simulator!M48)<0,NA(),(AT47-B48)*(1+alloc1*Simulator!E48+alloc2*Simulator!F48+alloc3*Simulator!H48+alloc4*Simulator!J48+alloc5*Simulator!M48)),NA()) ->  | AV48: 15.98648841 | AW48: =(AV48/$AV$12)^(1/AQ48)-1 ->  | AX48: 8.39232321 | AY48: =(AX48/$AX$12)^(1/AQ48)-1 ->  | AZ48: 10.75386425 | BA48: =(AZ48/$AZ$12)^(1/AQ48)-1 ->  | BB48: 19.01101096 | BC48: =(BB48/$BB$12)^(1/AQ48)-1 -> 
A49: 37 | B49: 66.96632172 | D49: 0.06 | E49: 0.06 | F49: 0.07555411735 | G49: 0.07555411735 | H49: 0.2647392434 | I49: 0.2647392434 | J49: -0.2135807589 | K49: -0.2135807589 | L49: -0.01852505225 | M49: -0.01852505225 | O49: -1172 | P49: 281 | Q49: 362 | R49: 135 | S49: 311 | AD49: 37 | AL49: =(1+alloc1*Simulator!E49+alloc2*Simulator!F49+alloc3*Simulator!H49+alloc4*Simulator!J49+alloc5*Simulator!M49) -> 1.067292679 | AM49: =IF(SUM($AM$13:AM48)<>0,0,IF(O49<0,B49-O48,0)) -> 0 | AN49: 0 | AT49: =IF(AQ49<>0,IF((AT48-B49)*(1+alloc1*Simulator!E49+alloc2*Simulator!F49+alloc3*Simulator!H49+alloc4*Simulator!J49+alloc5*Simulator!M49)<0,NA(),(AT48-B49)*(1+alloc1*Simulator!E49+alloc2*Simulator!F49+alloc3*Simulator!H49+alloc4*Simulator!J49+alloc5*Simulator!M49)),NA()) ->  | AV49: 17.19433343 | AX49: 10.61410051 | AZ49: 8.457045759 | BB49: 18.65883099
A50: 38 | B50: 72.33162746 | D50: 0.06 | E50: 0.06 | F50: 0.08152122446 | G50: 0.08152122446 | H50: 0.2325236095 | I50: 0.2325236095 | J50: -0.1321579973 | K50: -0.1321579973 | L50: 0.02364259993 | M50: 0.02364259993 | O50: -1319 | P50: 304 | Q50: 446 | R50: 117 | S50: 318 | AD50: 38 | AL50: =(1+alloc1*Simulator!E50+alloc2*Simulator!F50+alloc3*Simulator!H50+alloc4*Simulator!J50+alloc5*Simulator!M50) -> 1.073805305 | AM50: =IF(SUM($AM$13:AM49)<>0,0,IF(O50<0,B50-O49,0)) -> 0 | AN50: 0 | AT50: =IF(AQ50<>0,IF((AT49-B50)*(1+alloc1*Simulator!E50+alloc2*Simulator!F50+alloc3*Simulator!H50+alloc4*Simulator!J50+alloc5*Simulator!M50)<0,NA(),(AT49-B50)*(1+alloc1*Simulator!E50+alloc2*Simulator!F50+alloc3*Simulator!H50+alloc4*Simulator!J50+alloc5*Simulator!M50)),NA()) ->  | AV50: 18.59603654 | AX50: 13.08212947 | AZ50: 7.339379528 | BB50: 19.09997427
A51: 39 | B51: 78.12615765 | D51: 0.06 | E51: 0.06 | F51: 0.08902529495 | G51: 0.08902529495 | H51: 0.1187341616 | I51: 0.1187341616 | J51: 0.2350727291 | K51: 0.2350727291 | L51: -0.484353871 | M51: -0.484353871 | O51: -1481 | P51: 331 | Q51: 499 | R51: 145 | S51: 164 | AD51: 39 | AL51: =(1+alloc1*Simulator!E51+alloc2*Simulator!F51+alloc3*Simulator!H51+alloc4*Simulator!J51+alloc5*Simulator!M51) -> 1.037721248 | AM51: =IF(SUM($AM$13:AM50)<>0,0,IF(O51<0,B51-O50,0)) -> 0 | AN51: 0 | AT51: =IF(AQ51<>0,IF((AT50-B51)*(1+alloc1*Simulator!E51+alloc2*Simulator!F51+alloc3*Simulator!H51+alloc4*Simulator!J51+alloc5*Simulator!M51)<0,NA(),(AT50-B51)*(1+alloc1*Simulator!E51+alloc2*Simulator!F51+alloc3*Simulator!H51+alloc4*Simulator!J51+alloc5*Simulator!M51)),NA()) ->  | AV51: 20.25155418 | AX51: 14.63542514 | AZ51: 9.064667504 | BB51: 9.848827795
A52: 40 | B52: 84.38425027 | D52: 0.06 | E52: 0.06 | F52: 0.08168203221 | G52: 0.08168203221 | H52: 0.06204117711 | I52: 0.06204117711 | J52: 0.009708918572 | K52: 0.009708918572 | L52: -0.3202339682 | M52: -0.3202339682 | O52: -1659 | P52: 358 | Q52: 530 | R52: 146 | S52: 111 | AD52: 40 | AL52: =(1+alloc1*Simulator!E52+alloc2*Simulator!F52+alloc3*Simulator!H52+alloc4*Simulator!J52+alloc5*Simulator!M52) -> 1.019523934 | AM52: =IF(SUM($AM$13:AM51)<>0,0,IF(O52<0,B52-O51,0)) -> 0 | AN52: 0 | AT52: =IF(AQ52<>0,IF((AT51-B52)*(1+alloc1*Simulator!E52+alloc2*Simulator!F52+alloc3*Simulator!H52+alloc4*Simulator!J52+alloc5*Simulator!M52)<0,NA(),(AT51-B52)*(1+alloc1*Simulator!E52+alloc2*Simulator!F52+alloc3*Simulator!H52+alloc4*Simulator!J52+alloc5*Simulator!M52)),NA()) ->  | AV52: 21.90574228 | AX52: 15.54342415 | AZ52: 9.152675623 | BB52: 6.694898588
A53: 41 | B53: 91.14299029 | D53: 0.06 | E53: 0.06 | F53: 0.06254739545 | G53: 0.06254739545 | H53: 0.2302795971 | I53: 0.2302795971 | J53: 0.6564469937 | K53: 0.6564469937 | L53: 0.4580610207 | M53: 0.4580610207 | O53: -1855 | P53: 380 | Q53: 652 | R53: 242 | S53: 162 | AD53: 41 | AL53: =(1+alloc1*Simulator!E53+alloc2*Simulator!F53+alloc3*Simulator!H53+alloc4*Simulator!J53+alloc5*Simulator!M53) -> 1.19376146 | AM53: =IF(SUM($AM$13:AM52)<>0,0,IF(O53<0,B53-O52,0)) -> 0 | AN53: 0 | AT53: =IF(AQ53<>0,IF((AT52-B53)*(1+alloc1*Simulator!E53+alloc2*Simulator!F53+alloc3*Simulator!H53+alloc4*Simulator!J53+alloc5*Simulator!M53)<0,NA(),(AT52-B53)*(1+alloc1*Simulator!E53+alloc2*Simulator!F53+alloc3*Simulator!H53+alloc4*Simulator!J53+alloc5*Simulator!M53)),NA()) ->  | AV53: 23.2758894 | AX53: 19.1227576 | AZ53: 15.16092202 | BB53: 9.761570668
A54: 42 | B54: 98.44242951 | D54: 0.06 | E54: 0.06 | F54: 0.04081293595 | G54: 0.04081293595 | H54: 0.04726163936 | I54: 0.04726163936 | J54: 0.3306239354 | K54: 0.3306239354 | L54: 0.4204628142 | M54: 0.4204628142 | O54: -2071 | P54: 396 | Q54: 683 | R54: 322 | S54: 230 | AD54: 42 | AL54: =(1+alloc1*Simulator!E54+alloc2*Simulator!F54+alloc3*Simulator!H54+alloc4*Simulator!J54+alloc5*Simulator!M54) -> 1.118642296 | AM54: =IF(SUM($AM$13:AM53)<>0,0,IF(O54<0,B54-O53,0)) -> 0 | AN54: 0 | AT54: =IF(AQ54<>0,IF((AT53-B54)*(1+alloc1*Simulator!E54+alloc2*Simulator!F54+alloc3*Simulator!H54+alloc4*Simulator!J54+alloc5*Simulator!M54)<0,NA(),(AT53-B54)*(1+alloc1*Simulator!E54+alloc2*Simulator!F54+alloc3*Simulator!H54+alloc4*Simulator!J54+alloc5*Simulator!M54)),NA()) ->  | AV54: 24.22584679 | AX54: 20.02653047 | AZ54: 20.17348572 | BB54: 13.86594814
A55: 43 | B55: 106.3258239 | D55: 0.06 | E55: 0.06 | F55: 0.06778724257 | G55: 0.06778724257 | H55: 0.1355469281 | I55: 0.1355469281 | J55: 0.431118129 | K55: 0.431118129 | L55: -0.5199451288 | M55: -0.5199451288 | O55: -2308 | P55: 423 | Q55: 776 | R55: 461 | S55: 110 | AD55: 43 | AL55: =(1+alloc1*Simulator!E55+alloc2*Simulator!F55+alloc3*Simulator!H55+alloc4*Simulator!J55+alloc5*Simulator!M55) -> 1.05500541 | AM55: =IF(SUM($AM$13:AM54)<>0,0,IF(O55<0,B55-O54,0)) -> 0 | AN55: 0 | AT55: =IF(AQ55<>0,IF((AT54-B55)*(1+alloc1*Simulator!E55+alloc2*Simulator!F55+alloc3*Simulator!H55+alloc4*Simulator!J55+alloc5*Simulator!M55)<0,NA(),(AT54-B55)*(1+alloc1*Simulator!E55+alloc2*Simulator!F55+alloc3*Simulator!H55+alloc4*Simulator!J55+alloc5*Simulator!M55)),NA()) ->  | AV55: 25.86805014 | AX55: 22.74106516 | AZ55: 28.87064114 | BB55: 6.65641595
A56: 44 | B56: 114.8398898 | D56: 0.06 | E56: 0.06 | F56: 0.08410980365 | G56: 0.08410980365 | H56: -0.08565669409 | I56: -0.08565669409 | J56: -0.2453932483 | K56: -0.2453932483 | L56: 0.2268163467 | M56: 0.2268163467 | O56: -2568 | P56: 459 | Q56: 710 | R56: 348 | S56: 135 | AD56: 44 | AL56: =(1+alloc1*Simulator!E56+alloc2*Simulator!F56+alloc3*Simulator!H56+alloc4*Simulator!J56+alloc5*Simulator!M56) -> 1.019421951 | AM56: =IF(SUM($AM$13:AM55)<>0,0,IF(O56<0,B56-O55,0)) -> 0 | AN56: 0 | AT56: =IF(AQ56<>0,IF((AT55-B56)*(1+alloc1*Simulator!E56+alloc2*Simulator!F56+alloc3*Simulator!H56+alloc4*Simulator!J56+alloc5*Simulator!M56)<0,NA(),(AT55-B56)*(1+alloc1*Simulator!E56+alloc2*Simulator!F56+alloc3*Simulator!H56+alloc4*Simulator!J56+alloc5*Simulator!M56)),NA()) ->  | AV56: 28.04380676 | AX56: 20.79314069 | AZ56: 21.78598073 | BB56: 8.166199898
A57: 45 | B57: 124.035081 | D57: 0.06 | E57: 0.06 | F57: 0.1147420228 | G57: 0.1147420228 | H57: -0.04713463958 | I57: -0.04713463958 | J57: -0.03446522637 | K57: -0.03446522637 | L57: 0.9428002075 | M57: 0.9428002075 | O57: -2854 | P57: 512 | Q57: 677 | R57: 336 | S57: 262 | AD57: 45 | AL57: =(1+alloc1*Simulator!E57+alloc2*Simulator!F57+alloc3*Simulator!H57+alloc4*Simulator!J57+alloc5*Simulator!M57) -> 1.122880772 | AM57: =IF(SUM($AM$13:AM56)<>0,0,IF(O57<0,B57-O56,0)) -> 0 | AN57: 0 | AT57: =IF(AQ57<>0,IF((AT56-B57)*(1+alloc1*Simulator!E57+alloc2*Simulator!F57+alloc3*Simulator!H57+alloc4*Simulator!J57+alloc5*Simulator!M57)<0,NA(),(AT56-B57)*(1+alloc1*Simulator!E57+alloc2*Simulator!F57+alloc3*Simulator!H57+alloc4*Simulator!J57+alloc5*Simulator!M57)),NA()) ->  | AV57: 31.26160987 | AX57: 19.8130635 | AZ57: 21.03512197 | BB57: 15.86529486
A58: 46 | B58: 133.9658874 | D58: 0.06 | E58: 0.06 | F58: 0.08067175707 | G58: 0.08067175707 | H58: -0.1730633008 | I58: -0.1730633008 | J58: 0.1702033514 | K58: 0.1702033514 | L58: -0.6837155409 | M58: -0.6837155409 | O58: -3167 | P58: 553 | Q58: 560 | R58: 393 | S58: 83 | AD58: 46 | AL58: =(1+alloc1*Simulator!E58+alloc2*Simulator!F58+alloc3*Simulator!H58+alloc4*Simulator!J58+alloc5*Simulator!M58) -> 0.9521032966 | AM58: =IF(SUM($AM$13:AM57)<>0,0,IF(O58<0,B58-O57,0)) -> 0 | AN58: 0 | AT58: =IF(AQ58<>0,IF((AT57-B58)*(1+alloc1*Simulator!E58+alloc2*Simulator!F58+alloc3*Simulator!H58+alloc4*Simulator!J58+alloc5*Simulator!M58)<0,NA(),(AT57-B58)*(1+alloc1*Simulator!E58+alloc2*Simulator!F58+alloc3*Simulator!H58+alloc4*Simulator!J58+alloc5*Simulator!M58)),NA()) ->  | AV58: 33.78353887 | AX58: 16.38414933 | AZ58: 24.61537023 | BB58: 5.017946202
A59: 47 | B59: 144.6911584 | D59: 0.06 | E59: 0.06 | F59: 0.07206214822 | G59: 0.07206214822 | H59: 0.1080848258 | I59: 0.1080848258 | J59: 0.2980444615 | K59: 0.2980444615 | L59: -0.6001447676 | M59: -0.6001447676 | O59: -3510 | P59: 593 | Q59: 621 | R59: 510 | S59: 33 | AD59: 47 | AL59: =(1+alloc1*Simulator!E59+alloc2*Simulator!F59+alloc3*Simulator!H59+alloc4*Simulator!J59+alloc5*Simulator!M59) -> 1.028613149 | AM59: =IF(SUM($AM$13:AM58)<>0,0,IF(O59<0,B59-O58,0)) -> 0 | AN59: 0 | AT59: =IF(AQ59<>0,IF((AT58-B59)*(1+alloc1*Simulator!E59+alloc2*Simulator!F59+alloc3*Simulator!H59+alloc4*Simulator!J59+alloc5*Simulator!M59)<0,NA(),(AT58-B59)*(1+alloc1*Simulator!E59+alloc2*Simulator!F59+alloc3*Simulator!H59+alloc4*Simulator!J59+alloc5*Simulator!M59)),NA()) ->  | AV59: 36.21805325 | AX59: 18.15502726 | AZ59: 31.951845 | BB59: 2.006452045
A60: 48 | B60: 156.2744511 | D60: 0.06 | E60: 0.06 | F60: 0.08860208138 | G60: 0.08860208138 | H60: 0.09822206507 | I60: 0.09822206507 | J60: 0.05234161098 | K60: 0.05234161098 | L60: 0.2844531624 | M60: 0.2844531624 | O60: -3886 | P60: 646 | Q60: 682 | R60: 537 | S60: 42 | AD60: 48 | AL60: =(1+alloc1*Simulator!E60+alloc2*Simulator!F60+alloc3*Simulator!H60+alloc4*Simulator!J60+alloc5*Simulator!M60) -> 1.092184098 | AM60: =IF(SUM($AM$13:AM59)<>0,0,IF(O60<0,B60-O59,0)) -> 0 | AN60: 0 | AT60: =IF(AQ60<>0,IF((AT59-B60)*(1+alloc1*Simulator!E60+alloc2*Simulator!F60+alloc3*Simulator!H60+alloc4*Simulator!J60+alloc5*Simulator!M60)<0,NA(),(AT59-B60)*(1+alloc1*Simulator!E60+alloc2*Simulator!F60+alloc3*Simulator!H60+alloc4*Simulator!J60+alloc5*Simulator!M60)),NA()) ->  | AV60: 39.42704816 | AX60: 19.93825153 | AZ60: 33.62425604 | BB60: 2.577193674
A61: 49 | B61: 168.7844072 | D61: 0.06 | E61: 0.06 | F61: 0.07437599979 | G61: 0.07437599979 | H61: 0.181435937 | I61: 0.181435937 | J61: 0.6856774342 | K61: 0.6856774342 | L61: 0.1669858492 | M61: 0.1669858492 | O61: -4298 | P61: 694 | Q61: 806 | R61: 905 | S61: 49 | AD61: 49 | AL61: =(1+alloc1*Simulator!E61+alloc2*Simulator!F61+alloc3*Simulator!H61+alloc4*Simulator!J61+alloc5*Simulator!M61) -> 1.158991116 | AM61: =IF(SUM($AM$13:AM60)<>0,0,IF(O61<0,B61-O60,0)) -> 0 | AN61: 0 | AT61: =IF(AQ61<>0,IF((AT60-B61)*(1+alloc1*Simulator!E61+alloc2*Simulator!F61+alloc3*Simulator!H61+alloc4*Simulator!J61+alloc5*Simulator!M61)<0,NA(),(AT60-B61)*(1+alloc1*Simulator!E61+alloc2*Simulator!F61+alloc3*Simulator!H61+alloc4*Simulator!J61+alloc5*Simulator!M61)),NA()) ->  | AV61: 42.35947428 | AX61: 23.55576687 | AZ61: 56.67964964 | BB61: 3.007548548
A62: 50 | B62: 182.2951598 | D62: 0.06 | E62: 0.06 | F62: 0.1113315794 | G62: 0.1113315794 | H62: 0.03686449991 | I62: 0.03686449991 | J62: 0.8577550188 | K62: 0.8577550188 | L62: -0.1327288033 | M62: -0.1327288033 | O62: -4749 | P62: 771 | Q62: 836 | R62: 1681 | S62: 42 | AD62: 50 | AL62: =(1+alloc1*Simulator!E62+alloc2*Simulator!F62+alloc3*Simulator!H62+alloc4*Simulator!J62+alloc5*Simulator!M62) -> 1.121008679 | AM62: =IF(SUM($AM$13:AM61)<>0,0,IF(O62<0,B62-O61,0)) -> 0 | AN62: 0 | AT62: =IF(AQ62<>0,IF((AT61-B62)*(1+alloc1*Simulator!E62+alloc2*Simulator!F62+alloc3*Simulator!H62+alloc4*Simulator!J62+alloc5*Simulator!M62)<0,NA(),(AT61-B62)*(1+alloc1*Simulator!E62+alloc2*Simulator!F62+alloc3*Simulator!H62+alloc4*Simulator!J62+alloc5*Simulator!M62)),NA()) ->  | AV62: 47.07542146 | AX62: 24.42413844 | AZ62: 105.2969036 | BB62: 2.608360228
A63: 51 | B63: 196.8867726 | D63: 0.06 | E63: 0.06 | F63: 0.09567735492 | G63: 0.09567735492 | H63: -0.04972051319 | I63: -0.04972051319 | J63: 0.04428933903 | K63: 0.04428933903 | L63: -0.0219623238 | M63: -0.0219623238 | O63: -5243 | P63: 845 | Q63: 794 | R63: 1755 | S63: 41 | AD63: 51 | AL63: =(1+alloc1*Simulator!E63+alloc2*Simulator!F63+alloc3*Simulator!H63+alloc4*Simulator!J63+alloc5*Simulator!M63) -> 1.031856334 | AM63: =IF(SUM($AM$13:AM62)<>0,0,IF(O63<0,B63-O62,0)) -> 0 | AN63: 0 | AT63: =IF(AQ63<>0,IF((AT62-B63)*(1+alloc1*Simulator!E63+alloc2*Simulator!F63+alloc3*Simulator!H63+alloc4*Simulator!J63+alloc5*Simulator!M63)<0,NA(),(AT62-B63)*(1+alloc1*Simulator!E63+alloc2*Simulator!F63+alloc3*Simulator!H63+alloc4*Simulator!J63+alloc5*Simulator!M63)),NA()) ->  | AV63: 51.57947327 | AX63: 23.20975774 | AZ63: 109.9604339 | BB63: 2.551074577
A64: 52 | B64: 212.6457144 | D64: 0.06 | E64: 0.06 | F64: 0.04442198823 | G64: 0.04442198823 | H64: 0.2235862508 | I64: 0.2235862508 | J64: -0.7642991072 | K64: -0.7642991072 | L64: 0.2235853505 | M64: 0.2235853505 | O64: -5783 | P64: 883 | Q64: 972 | R64: 414 | S64: 50 | AD64: 52 | AL64: =(1+alloc1*Simulator!E64+alloc2*Simulator!F64+alloc3*Simulator!H64+alloc4*Simulator!J64+alloc5*Simulator!M64) -> 1.025088073 | AM64: =IF(SUM($AM$13:AM63)<>0,0,IF(O64<0,B64-O63,0)) -> 0 | AN64: 0 | AT64: =IF(AQ64<>0,IF((AT63-B64)*(1+alloc1*Simulator!E64+alloc2*Simulator!F64+alloc3*Simulator!H64+alloc4*Simulator!J64+alloc5*Simulator!M64)<0,NA(),(AT63-B64)*(1+alloc1*Simulator!E64+alloc2*Simulator!F64+alloc3*Simulator!H64+alloc4*Simulator!J64+alloc5*Simulator!M64)),NA()) ->  | AV64: 53.87073602 | AX64: 28.39914046 | AZ64: 25.91777243 | BB64: 3.12145748
A65: 53 | B65: 229.6653715 | D65: 0.06 | E65: 0.06 | F65: 0.1233709254 | G65: 0.1233709254 | H65: -0.06909808828 | I65: -0.06909808828 | J65: -0.01467019453 | K65: -0.01467019453 | L65: 0.2600850266 | M65: 0.2600850266 | O65: -6373 | P65: 992 | Q65: 905 | R65: 408 | S65: 63 | AD65: 53 | AL65: =(1+alloc1*Simulator!E65+alloc2*Simulator!F65+alloc3*Simulator!H65+alloc4*Simulator!J65+alloc5*Simulator!M65) -> 1.053058958 | AM65: =IF(SUM($AM$13:AM64)<>0,0,IF(O65<0,B65-O64,0)) -> 0 | AN65: 0 | AT65: =IF(AQ65<>0,IF((AT64-B65)*(1+alloc1*Simulator!E65+alloc2*Simulator!F65+alloc3*Simulator!H65+alloc4*Simulator!J65+alloc5*Simulator!M65)<0,NA(),(AT64-B65)*(1+alloc1*Simulator!E65+alloc2*Simulator!F65+alloc3*Simulator!H65+alloc4*Simulator!J65+alloc5*Simulator!M65)),NA()) ->  | AV65: 60.51681857 | AX65: 26.43681414 | AZ65: 25.53755366 | BB65: 3.933301832
A66: 54 | B66: 248.0466012 | D66: 0.06 | E66: 0.06 | F66: 0.08434027021 | G66: 0.08434027021 | H66: 0.08275795959 | I66: 0.08275795959 | J66: 0.05951279183 | K66: 0.05951279183 | L66: -0.2337302167 | M66: -0.2337302167 | O66: -7018 | P66: 1076 | Q66: 980 | R66: 432 | S66: 48 | AD66: 54 | AL66: =(1+alloc1*Simulator!E66+alloc2*Simulator!F66+alloc3*Simulator!H66+alloc4*Simulator!J66+alloc5*Simulator!M66) -> 1.037563876 | AM66: =IF(SUM($AM$13:AM65)<>0,0,IF(O66<0,B66-O65,0)) -> 0 | AN66: 0 | AT66: =IF(AQ66<>0,IF((AT65-B66)*(1+alloc1*Simulator!E66+alloc2*Simulator!F66+alloc3*Simulator!H66+alloc4*Simulator!J66+alloc5*Simulator!M66)<0,NA(),(AT65-B66)*(1+alloc1*Simulator!E66+alloc2*Simulator!F66+alloc3*Simulator!H66+alloc4*Simulator!J66+alloc5*Simulator!M66)),NA()) ->  | AV66: 65.6208234 | AX66: 28.62467094 | AZ66: 27.05736478 | BB66: 3.013970342
A67: 55 | B67: 267.8983293 | D67: 0.06 | E67: 0.06 | F67: 0.07238621939 | G67: 0.07238621939 | H67: 0.02550894026 | I67: 0.02550894026 | J67: -0.2072084654 | K67: -0.2072084654 | L67: 1.054853035 | M67: 1.054853035 | O67: -7723 | P67: 1154 | Q67: 1005 | R67: 342 | S67: 99 | AD67: 55 | AL67: =(1+alloc1*Simulator!E67+alloc2*Simulator!F67+alloc3*Simulator!H67+alloc4*Simulator!J67+alloc5*Simulator!M67) -> 1.127104867 | AM67: =IF(SUM($AM$13:AM66)<>0,0,IF(O67<0,B67-O66,0)) -> 0 | AN67: 0 | AT67: =IF(AQ67<>0,IF((AT66-B67)*(1+alloc1*Simulator!E67+alloc2*Simulator!F67+alloc3*Simulator!H67+alloc4*Simulator!J67+alloc5*Simulator!M67)<0,NA(),(AT66-B67)*(1+alloc1*Simulator!E67+alloc2*Simulator!F67+alloc3*Simulator!H67+alloc4*Simulator!J67+alloc5*Simulator!M67)),NA()) ->  | AV67: 70.37086672 | AX67: 29.35485596 | AZ67: 21.45084975 | BB67: 6.193266106
A68: 56 | B68: 289.3381957 | D68: 0.06 | E68: 0.06 | F68: 0.08101973261 | G68: 0.08101973261 | H68: -0.03855738564 | I68: -0.03855738564 | J68: -0.2227531251 | K68: -0.2227531251 | L68: 0.8470714308 | M68: 0.8470714308 | O68: -8493 | P68: 1247 | Q68: 966 | R68: 266 | S68: 183 | AD68: 56 | AL68: =(1+alloc1*Simulator!E68+alloc2*Simulator!F68+alloc3*Simulator!H68+alloc4*Simulator!J68+alloc5*Simulator!M68) -> 1.092822327 | AM68: =IF(SUM($AM$13:AM67)<>0,0,IF(O68<0,B68-O67,0)) -> 0 | AN68: 0 | AT68: =IF(AQ68<>0,IF((AT67-B68)*(1+alloc1*Simulator!E68+alloc2*Simulator!F68+alloc3*Simulator!H68+alloc4*Simulator!J68+alloc5*Simulator!M68)<0,NA(),(AT67-B68)*(1+alloc1*Simulator!E68+alloc2*Simulator!F68+alloc3*Simulator!H68+alloc4*Simulator!J68+alloc5*Simulator!M68)),NA()) ->  | AV68: 76.07229553 | AX68: 28.22300946 | AZ68: 16.67260593 | BB68: 11.43940489
A69: 57 | B69: 312.4932513 | D69: 0.06 | E69: 0.06 | F69: 0.05910266506 | G69: 0.05910266506 | H69: 0.1402323534 | I69: 0.1402323534 | J69: 0.2334511473 | K69: 0.2334511473 | L69: -0.1226873134 | M69: -0.1226873134 | O69: -9334 | P69: 1321 | Q69: 1101 | R69: 328 | S69: 161 | AD69: 57 | AL69: =(1+alloc1*Simulator!E69+alloc2*Simulator!F69+alloc3*Simulator!H69+alloc4*Simulator!J69+alloc5*Simulator!M69) -> 1.075033121 | AM69: =IF(SUM($AM$13:AM68)<>0,0,IF(O69<0,B69-O68,0)) -> 0 | AN69: 0 | AT69: =IF(AQ69<>0,IF((AT68-B69)*(1+alloc1*Simulator!E69+alloc2*Simulator!F69+alloc3*Simulator!H69+alloc4*Simulator!J69+alloc5*Simulator!M69)<0,NA(),(AT68-B69)*(1+alloc1*Simulator!E69+alloc2*Simulator!F69+alloc3*Simulator!H69+alloc4*Simulator!J69+alloc5*Simulator!M69)),NA()) ->  | AV69: 80.56837093 | AX69: 32.1807885 | AZ69: 20.56484491 | BB69: 10.03593503
A70: 58 | B70: 337.5007114 | D70: 0.06 | E70: 0.06 | F70: 0.0898479881 | G70: 0.0898479881 | H70: 0.3631916556 | I70: 0.3631916556 | J70: 0.301370365 | K70: 0.301370365 | L70: 0.7626695677 | M70: 0.7626695677 | O70: -10252 | P70: 1440 | Q70: 1501 | R70: 427 | S70: 284 | AD70: 58 | AL70: =(1+alloc1*Simulator!E70+alloc2*Simulator!F70+alloc3*Simulator!H70+alloc4*Simulator!J70+alloc5*Simulator!M70) -> 1.218027123 | AM70: =IF(SUM($AM$13:AM69)<>0,0,IF(O70<0,B70-O69,0)) -> 0 | AN70: 0 | AT70: =IF(AQ70<>0,IF((AT69-B70)*(1+alloc1*Simulator!E70+alloc2*Simulator!F70+alloc3*Simulator!H70+alloc4*Simulator!J70+alloc5*Simulator!M70)<0,NA(),(AT69-B70)*(1+alloc1*Simulator!E70+alloc2*Simulator!F70+alloc3*Simulator!H70+alloc4*Simulator!J70+alloc5*Simulator!M70)),NA()) ->  | AV70: 87.80727696 | AX70: 43.86858235 | AZ70: 26.76247973 | BB70: 17.69003727
A71: 59 | B71: 364.5087683 | D71: 0.06 | E71: 0.06 | F71: 0.09671544038 | G71: 0.09671544038 | H71: -0.06892620631 | I71: -0.06892620631 | J71: -0.4192195629 | K71: -0.4192195629 | L71: 0.6591732213 | M71: 0.6591732213 | O71: -11253 | P71: 1579 | Q71: 1398 | R71: 248 | S71: 471 | AD71: 59 | AL71: =(1+alloc1*Simulator!E71+alloc2*Simulator!F71+alloc3*Simulator!H71+alloc4*Simulator!J71+alloc5*Simulator!M71) -> 1.049881669 | AM71: =IF(SUM($AM$13:AM70)<>0,0,IF(O71<0,B71-O70,0)) -> 0 | AN71: 0 | AT71: =IF(AQ71<>0,IF((AT70-B71)*(1+alloc1*Simulator!E71+alloc2*Simulator!F71+alloc3*Simulator!H71+alloc4*Simulator!J71+alloc5*Simulator!M71)<0,NA(),(AT70-B71)*(1+alloc1*Simulator!E71+alloc2*Simulator!F71+alloc3*Simulator!H71+alloc4*Simulator!J71+alloc5*Simulator!M71)),NA()) ->  | AV71: 96.29959642 | AX71: 40.84488739 | AZ71: 15.54312468 | BB71: 29.35083612
A72: 60 | B72: 393.6774698 | D72: 0.06 | E72: 0.06 | F72: 0.05264541719 | G72: 0.05264541719 | H72: 0.07023894261 | I72: 0.07023894261 | J72: -0.5254448083 | K72: -0.5254448083 | L72: 0.2453402469 | M72: 0.2453402469 | O72: -12345 | P72: 1662 | Q72: 1496 | R72: 118 | S72: 587 | AD72: 60 | AL72: =(1+alloc1*Simulator!E72+alloc2*Simulator!F72+alloc3*Simulator!H72+alloc4*Simulator!J72+alloc5*Simulator!M72) -> 1.021301874 | AM72: =IF(SUM($AM$13:AM71)<>0,0,IF(O72<0,B72-O71,0)) -> 0 | AN72: 0 | AT72: =IF(AQ72<>0,IF((AT71-B72)*(1+alloc1*Simulator!E72+alloc2*Simulator!F72+alloc3*Simulator!H72+alloc4*Simulator!J72+alloc5*Simulator!M72)<0,NA(),(AT71-B72)*(1+alloc1*Simulator!E72+alloc2*Simulator!F72+alloc3*Simulator!H72+alloc4*Simulator!J72+alloc5*Simulator!M72)),NA()) ->  | AV72: 101.3693289 | AX72: 43.71378909 | AZ72: 7.37607051 | BB72: 36.5517775
A73: 61 | B73: 425.1796674 | D73: 0.06 | E73: 0.06 | F73: 0.05794205553 | G73: 0.05794205553 | H73: 0.1231586401 | I73: 0.1231586401 | J73: -0.1196093288 | K73: -0.1196093288 | L73: 0.6701525844 | M73: 0.6701525844 | O73: -13536 | P73: 1758 | Q73: 1680 | R73: 104 | S73: 980 | AD73: 61 | AL73: =(1+alloc1*Simulator!E73+alloc2*Simulator!F73+alloc3*Simulator!H73+alloc4*Simulator!J73+alloc5*Simulator!M73) -> 1.115480259 | AM73: =IF(SUM($AM$13:AM72)<>0,0,IF(O73<0,B73-O72,0)) -> 0 | AN73: 0 | AT73: =IF(AQ73<>0,IF((AT72-B73)*(1+alloc1*Simulator!E73+alloc2*Simulator!F73+alloc3*Simulator!H73+alloc4*Simulator!J73+alloc5*Simulator!M73)<0,NA(),(AT72-B73)*(1+alloc1*Simulator!E73+alloc2*Simulator!F73+alloc3*Simulator!H73+alloc4*Simulator!J73+alloc5*Simulator!M73)),NA()) ->  | AV73: 107.2428761 | AX73: 49.09751991 | AZ73: 6.493823667 | BB73: 61.04704566
A74: 62 | B74: 459.2020408 | D74: 0.06 | E74: 0.06 | F74: 0.0907920994 | G74: 0.0907920994 | H74: 0.03682844059 | I74: 0.03682844059 | J74: 0.1346780971 | K74: 0.1346780971 | L74: 0.2739043796 | M74: 0.2739043796 | O74: -14835 | P74: 1918 | Q74: 1742 | R74: 118 | S74: 1248 | AD74: 62 | AL74: =(1+alloc1*Simulator!E74+alloc2*Simulator!F74+alloc3*Simulator!H74+alloc4*Simulator!J74+alloc5*Simulator!M74) -> 1.087303146 | AM74: =IF(SUM($AM$13:AM73)<>0,0,IF(O74<0,B74-O73,0)) -> 0 | AN74: 0 | AT74: =IF(AQ74<>0,IF((AT73-B74)*(1+alloc1*Simulator!E74+alloc2*Simulator!F74+alloc3*Simulator!H74+alloc4*Simulator!J74+alloc5*Simulator!M74)<0,NA(),(AT73-B74)*(1+alloc1*Simulator!E74+alloc2*Simulator!F74+alloc3*Simulator!H74+alloc4*Simulator!J74+alloc5*Simulator!M74)),NA()) ->  | AV74: 116.979682 | AX74: 50.90570501 | AZ74: 7.368399481 | BB74: 77.76809883
A75: 63 | B75: 495.9462041 | D75: 0.06 | E75: 0.06 | F75: 0.067618109 | G75: 0.067618109 | H75: 0.03258805917 | I75: 0.03258805917 | J75: 0.516274003 | K75: 0.516274003 | L75: 0.6158657686 | M75: 0.6158657686 | O75: -16251 | P75: 2048 | Q75: 1799 | R75: 179 | S75: 2017 | AD75: 63 | AL75: =(1+alloc1*Simulator!E75+alloc2*Simulator!F75+alloc3*Simulator!H75+alloc4*Simulator!J75+alloc5*Simulator!M75) -> 1.1564934 | AM75: =IF(SUM($AM$13:AM74)<>0,0,IF(O75<0,B75-O74,0)) -> 0 | AN75: 0 | AT75: =IF(AQ75<>0,IF((AT74-B75)*(1+alloc1*Simulator!E75+alloc2*Simulator!F75+alloc3*Simulator!H75+alloc4*Simulator!J75+alloc5*Simulator!M75)<0,NA(),(AT74-B75)*(1+alloc1*Simulator!E75+alloc2*Simulator!F75+alloc3*Simulator!H75+alloc4*Simulator!J75+alloc5*Simulator!M75)),NA()) ->  | AV75: 124.8896269 | AX75: 52.56462313 | AZ75: 11.17251258 | BB75: 125.6628088
A76: 64 | B76: 535.6299004 | D76: 0.06 | E76: 0.06 | F76: 0.09259775688 | G76: 0.09259775688 | H76: 0.06985668477 | I76: 0.06985668477 | J76: 0.2203931872 | K76: 0.2203931872 | L76: -0.09933159274 | M76: -0.09933159274 | O76: -17794 | P76: 2238 | Q76: 1925 | R76: 218 | S76: 1817 | AD76: 64 | AL76: =(1+alloc1*Simulator!E76+alloc2*Simulator!F76+alloc3*Simulator!H76+alloc4*Simulator!J76+alloc5*Simulator!M76) -> 1.065337272 | AM76: =IF(SUM($AM$13:AM75)<>0,0,IF(O76<0,B76-O75,0)) -> 0 | AN76: 0 | AT76: =IF(AQ76<>0,IF((AT75-B76)*(1+alloc1*Simulator!E76+alloc2*Simulator!F76+alloc3*Simulator!H76+alloc4*Simulator!J76+alloc5*Simulator!M76)<0,NA(),(AT75-B76)*(1+alloc1*Simulator!E76+alloc2*Simulator!F76+alloc3*Simulator!H76+alloc4*Simulator!J76+alloc5*Simulator!M76)),NA()) ->  | AV76: 136.4541262 | AX76: 56.23661344 | AZ76: 13.63485823 | BB76: 113.1805218
A77: 65 | B77: =(prepen1*(1+rinf)^(A77-1)/100000)-(pension/100000)-(income*(1+incrate)^(A77-1)/100000) -> 578.4882924 | D77: =IF(E77<>"",E77,_min1) -> 0.06 | E77: 0.06 | F77: 0.07133132956 | G77: =IF(F77<>"",F77,NORMINV(RAND(),mean2,stdev2)) -> 0.07133132956 | H77: 0.007591156676 | I77: =IF(H77<>"",H77,NORMINV(RAND(),mean3,stdev3)) -> 0.007591156676 | J77: -0.1769697129 | K77: =IF(J77<>"",J77,NORMINV(RAND(),mean4,stdev4)) -> -0.1769697129 | L77: =IF(M77<>"",M77,NORMINV(RAND(),mean5,stdev5)) -> 0.1659234941 | M77: 0.1659234941 | O77: -19475 | P77: =ROUND((P76-U76-V76+IF(trans3="bucket 2",X76)+IF(trans4="bucket 2",Z76)+IF(trans5="bucket 2",AB76))*(1+F77),0) -> 2398 | Q77: =ROUND((Q76-W76-X76+IF(trans2="bucket 3",V76)+IF(trans4="bucket 3",Z76)+IF(trans5="bucket 3",AB76))*(1+H77),0) -> 1940 | R77: =ROUND((R76-Y76-Z76+IF(trans2="bucket 4",V76)+IF(trans3="bucket 4",X76)+IF(trans5="bucket 4",AB76))*(1+J77),0) -> 179 | S77: =ROUND((S76-AA76-AB76+IF(trans2="bucket 5",V76)+IF(trans3="bucket 5",X76)+IF(trans4="bucket 5",Z76))*(1+M77),0) -> 2118 | AD77: 65 | AL77: =(1+alloc1*Simulator!E77+alloc2*Simulator!F77+alloc3*Simulator!H77+alloc4*Simulator!J77+alloc5*Simulator!M77) -> 1.037546742 | AM77: =IF(SUM($AM$13:AM76)<>0,0,IF(O77<0,B77-O76,0)) -> 0 | AN77: 0 | AS77: =IF(AQ77<>0,IF(AS76- B77<0,NA(),(AS76-B77)*(1+retroi)),NA()) ->  | AT77: =IF(AQ77<>0,IF((AT76-B77)*(1+alloc1*Simulator!E77+alloc2*Simulator!F77+alloc3*Simulator!H77+alloc4*Simulator!J77+alloc5*Simulator!M77)<0,NA(),(AT76-B77)*(1+alloc1*Simulator!E77+alloc2*Simulator!F77+alloc3*Simulator!H77+alloc4*Simulator!J77+alloc5*Simulator!M77)),NA()) ->  | AU77: =IF(AQ77<>0,IF(AU76-B77<0,NA(),(AU76-B77)*(1+retroi)),NA()) ->  | AV77: 146.1875804 | AX77: 56.66351438 | AZ77: 11.22190129 | BB77: 131.9598295
A78: =A77+1 -> 66 | B78: 624.7753558 | D78: 0.06 | E78: 0.06 | F78: 0.09374827966 | G78: 0.09374827966 | H78: 0.2207410912 | I78: 0.2207410912 | J78: -0.017752082 | K78: -0.017752082 | L78: -0.2430762574 | M78: -0.2430762574 | O78: =ROUND((O77-B78+U77+W77+Y77+AA77)*(1+D78),0) -> -21306 | P78: 2623 | Q78: 2368 | R78: 176 | S78: 1603 | AD78: =AD77+1 -> 66 | AL78: =(1+alloc1*Simulator!E78+alloc2*Simulator!F78+alloc3*Simulator!H78+alloc4*Simulator!J78+alloc5*Simulator!M78) -> 1.057440212 | AM78: =IF(SUM($AM$13:AM77)<>0,0,IF(O78<0,B78-O77,0)) -> 0 | AN78: =IF(AM78<>0,A78,0) -> 0 | AT78: =IF(AQ78<>0,IF((AT77-B78)*(1+alloc1*Simulator!E78+alloc2*Simulator!F78+alloc3*Simulator!H78+alloc4*Simulator!J78+alloc5*Simulator!M78)<0,NA(),(AT77-B78)*(1+alloc1*Simulator!E78+alloc2*Simulator!F78+alloc3*Simulator!H78+alloc4*Simulator!J78+alloc5*Simulator!M78)),NA()) ->  | AV78: =AV77*(1+F78) -> 159.8924146 | AW78: =(AV78/$AV$12)^(1/AQ78)-1 ->  | AX78: =AX77*(1+H78) -> 69.17148038 | AY78: =(AX78/$AX$12)^(1/AQ78)-1 ->  | AZ78: =AZ77*(1+J78) -> 11.02268917 | BA78: =(AZ78/$AZ$12)^(1/AQ78)-1 ->  | BB78: =BB77*(1+M78) -> 99.88352802 | BC78: =(BB78/$BB$12)^(1/AQ78)-1 -> 
A79: 67 | B79: 674.7653843 | D79: 0.06 | E79: 0.06 | F79: 0.08547783514 | G79: 0.08547783514 | H79: 0.0253676956 | I79: 0.0253676956 | J79: 0.09036769435 | K79: 0.09036769435 | L79: 0.4404465465 | M79: 0.4404465465 | O79: -23300 | P79: 2847 | Q79: 2428 | R79: 192 | S79: 2309 | AD79: 67 | AL79: =(1+alloc1*Simulator!E79+alloc2*Simulator!F79+alloc3*Simulator!H79+alloc4*Simulator!J79+alloc5*Simulator!M79) -> 1.096702747 | AM79: =IF(SUM($AM$13:AM78)<>0,0,IF(O79<0,B79-O78,0)) -> 0 | AN79: 0 | AT79: =IF(AQ79<>0,IF((AT78-B79)*(1+alloc1*Simulator!E79+alloc2*Simulator!F79+alloc3*Simulator!H79+alloc4*Simulator!J79+alloc5*Simulator!M79)<0,NA(),(AT78-B79)*(1+alloc1*Simulator!E79+alloc2*Simulator!F79+alloc3*Simulator!H79+alloc4*Simulator!J79+alloc5*Simulator!M79)),NA()) ->  | AV79: 173.5596721 | AX79: 70.92620144 | AZ79: 12.01878418 | BB79: 143.876883
A80: 68 | B80: 728.754615 | D80: 0.06 | E80: 0.06 | F80: 0.0643737938 | G80: 0.0643737938 | H80: 0.2453713582 | I80: 0.2453713582 | J80: 0.2603332633 | K80: 0.2603332633 | L80: 0.3272642701 | M80: 0.3272642701 | O80: -25470 | P80: 3030 | Q80: 3024 | R80: 242 | S80: 3065 | AD80: 68 | AL80: =(1+alloc1*Simulator!E80+alloc2*Simulator!F80+alloc3*Simulator!H80+alloc4*Simulator!J80+alloc5*Simulator!M80) -> 1.144271404 | AM80: =IF(SUM($AM$13:AM79)<>0,0,IF(O80<0,B80-O79,0)) -> 0 | AN80: 0 | AT80: =IF(AQ80<>0,IF((AT79-B80)*(1+alloc1*Simulator!E80+alloc2*Simulator!F80+alloc3*Simulator!H80+alloc4*Simulator!J80+alloc5*Simulator!M80)<0,NA(),(AT79-B80)*(1+alloc1*Simulator!E80+alloc2*Simulator!F80+alloc3*Simulator!H80+alloc4*Simulator!J80+alloc5*Simulator!M80)),NA()) ->  | AV80: 184.7323666 | AX80: 88.32945982 | AZ80: 15.14767349 | BB80: 190.9626461
A81: 69 | B81: 787.0629842 | D81: 0.06 | E81: 0.06 | F81: 0.05562952478 | G81: 0.05562952478 | H81: -0.05213686451 | I81: -0.05213686451 | J81: 0.2798194328 | K81: 0.2798194328 | L81: -0.06446205662 | M81: -0.06446205662 | O81: -27832 | P81: 3199 | Q81: 2866 | R81: 310 | S81: 2867 | AD81: 69 | AL81: =(1+alloc1*Simulator!E81+alloc2*Simulator!F81+alloc3*Simulator!H81+alloc4*Simulator!J81+alloc5*Simulator!M81) -> 1.046671317 | AM81: =IF(SUM($AM$13:AM80)<>0,0,IF(O81<0,B81-O80,0)) -> 0 | AN81: 0 | AT81: =IF(AQ81<>0,IF((AT80-B81)*(1+alloc1*Simulator!E81+alloc2*Simulator!F81+alloc3*Simulator!H81+alloc4*Simulator!J81+alloc5*Simulator!M81)<0,NA(),(AT80-B81)*(1+alloc1*Simulator!E81+alloc2*Simulator!F81+alloc3*Simulator!H81+alloc4*Simulator!J81+alloc5*Simulator!M81)),NA()) ->  | AV81: 195.0089404 | AX81: 83.72423874 | AZ81: 19.38628689 | BB81: 178.6528012
A82: 70 | B82: 850.036023 | D82: 0.06 | E82: 0.06 | F82: 0.09579468273 | G82: 0.09579468273 | H82: -0.01106419509 | I82: -0.01106419509 | J82: 0.1036854109 | K82: 0.1036854109 | L82: -0.3703550191 | M82: -0.3703550191 | O82: -30403 | P82: 3505 | Q82: 2834 | R82: 342 | S82: 1805 | AD82: 70 | AL82: =(1+alloc1*Simulator!E82+alloc2*Simulator!F82+alloc3*Simulator!H82+alloc4*Simulator!J82+alloc5*Simulator!M82) -> 1.010699668 | AM82: =IF(SUM($AM$13:AM81)<>0,0,IF(O82<0,B82-O81,0)) -> 0 | AN82: 0 | AT82: =IF(AQ82<>0,IF((AT81-B82)*(1+alloc1*Simulator!E82+alloc2*Simulator!F82+alloc3*Simulator!H82+alloc4*Simulator!J82+alloc5*Simulator!M82)<0,NA(),(AT81-B82)*(1+alloc1*Simulator!E82+alloc2*Simulator!F82+alloc3*Simulator!H82+alloc4*Simulator!J82+alloc5*Simulator!M82)),NA()) ->  | AV82: 213.68976 | AX82: 82.79789743 | AZ82: 21.39636201 | BB82: 112.4878396
A83: 71 | B83: 918.0469048 | D83: 0.06 | E83: 0.06 | F83: 0.06555123715 | G83: 0.06555123715 | H83: 0.1954426874 | I83: 0.1954426874 | J83: 0.1608362272 | K83: 0.1608362272 | L83: 0.6543101384 | M83: 0.6543101384 | O83: -33200 | P83: 3735 | Q83: 3388 | R83: 397 | S83: 2986 | AD83: 71 | AL83: =(1+alloc1*Simulator!E83+alloc2*Simulator!F83+alloc3*Simulator!H83+alloc4*Simulator!J83+alloc5*Simulator!M83) -> 1.157158298 | AM83: =IF(SUM($AM$13:AM82)<>0,0,IF(O83<0,B83-O82,0)) -> 0 | AN83: 0 | AT83: =IF(AQ83<>0,IF((AT82-B83)*(1+alloc1*Simulator!E83+alloc2*Simulator!F83+alloc3*Simulator!H83+alloc4*Simulator!J83+alloc5*Simulator!M83)<0,NA(),(AT82-B83)*(1+alloc1*Simulator!E83+alloc2*Simulator!F83+alloc3*Simulator!H83+alloc4*Simulator!J83+alloc5*Simulator!M83)),NA()) ->  | AV83: 227.6973881 | AX83: 98.98014101 | AZ83: 24.83767215 | BB83: 186.0897735
A84: 72 | B84: 991.4986572 | D84: 0.06 | E84: 0.06 | F84: 0.06284340912 | G84: 0.06284340912 | H84: -0.1423494195 | I84: -0.1423494195 | J84: 0.5175772805 | K84: 0.5175772805 | L84: 0.3598300218 | M84: 0.3598300218 | O84: -36243 | P84: 3970 | Q84: 2906 | R84: 602 | S84: 4060 | AD84: 72 | AL84: =(1+alloc1*Simulator!E84+alloc2*Simulator!F84+alloc3*Simulator!H84+alloc4*Simulator!J84+alloc5*Simulator!M84) -> 1.095555187 | AM84: =IF(SUM($AM$13:AM83)<>0,0,IF(O84<0,B84-O83,0)) -> 0 | AN84: 0 | AT84: =IF(AQ84<>0,IF((AT83-B84)*(1+alloc1*Simulator!E84+alloc2*Simulator!F84+alloc3*Simulator!H84+alloc4*Simulator!J84+alloc5*Simulator!M84)<0,NA(),(AT83-B84)*(1+alloc1*Simulator!E84+alloc2*Simulator!F84+alloc3*Simulator!H84+alloc4*Simulator!J84+alloc5*Simulator!M84)),NA()) ->  | AV84: 242.0066682 | AX84: 84.8903754 | AZ84: 37.69308696 | BB84: 253.0504607
A85: 73 | B85: 1070.82655 | D85: 0.06 | E85: 0.06 | F85: 0.1053708423 | G85: 0.1053708423 | H85: -0.05298939247 | I85: -0.05298939247 | J85: 0.2397134913 | K85: 0.2397134913 | L85: -0.4607622062 | M85: -0.4607622062 | O85: -39553 | P85: 4388 | Q85: 2752 | R85: 746 | S85: 2189 | AD85: 73 | AL85: =(1+alloc1*Simulator!E85+alloc2*Simulator!F85+alloc3*Simulator!H85+alloc4*Simulator!J85+alloc5*Simulator!M85) -> 1.007834334 | AM85: =IF(SUM($AM$13:AM84)<>0,0,IF(O85<0,B85-O84,0)) -> 0 | AN85: 0 | AT85: =IF(AQ85<>0,IF((AT84-B85)*(1+alloc1*Simulator!E85+alloc2*Simulator!F85+alloc3*Simulator!H85+alloc4*Simulator!J85+alloc5*Simulator!M85)<0,NA(),(AT84-B85)*(1+alloc1*Simulator!E85+alloc2*Simulator!F85+alloc3*Simulator!H85+alloc4*Simulator!J85+alloc5*Simulator!M85)),NA()) ->  | AV85: 267.5071147 | AX85: 80.39208598 | AZ85: 46.72862843 | BB85: 136.4543721
A86: 74 | B86: 1156.500674 | D86: 0.06 | E86: 0.06 | F86: 0.045506508 | G86: 0.045506508 | H86: 0.09381693119 | I86: 0.09381693119 | J86: 0.4168983853 | K86: 0.4168983853 | L86: -0.4675593376 | M86: -0.4675593376 | O86: -43152 | P86: 4588 | Q86: 3010 | R86: 1057 | S86: 1166 | AD86: 74 | AL86: =(1+alloc1*Simulator!E86+alloc2*Simulator!F86+alloc3*Simulator!H86+alloc4*Simulator!J86+alloc5*Simulator!M86) -> 1.048247942 | AM86: =IF(SUM($AM$13:AM85)<>0,0,IF(O86<0,B86-O85,0)) -> 0 | AN86: 0 | AT86: =IF(AQ86<>0,IF((AT85-B86)*(1+alloc1*Simulator!E86+alloc2*Simulator!F86+alloc3*Simulator!H86+alloc4*Simulator!J86+alloc5*Simulator!M86)<0,NA(),(AT85-B86)*(1+alloc1*Simulator!E86+alloc2*Simulator!F86+alloc3*Simulator!H86+alloc4*Simulator!J86+alloc5*Simulator!M86)),NA()) ->  | AV86: 279.6804293 | AX86: 87.93422478 | AZ86: 66.20971818 | BB86: 72.65385629
A87: 75 | B87: 1249.028728 | D87: 0.06 | E87: 0.06 | F87: 0.07813880551 | G87: 0.07813880551 | H87: 0.2943232197 | I87: 0.2943232197 | J87: 0.1653351904 | K87: 0.1653351904 | L87: -0.3899185738 | M87: -0.3899185738 | O87: -47065 | P87: 4947 | Q87: 3896 | R87: 1232 | S87: 711 | AD87: 75 | AL87: =(1+alloc1*Simulator!E87+alloc2*Simulator!F87+alloc3*Simulator!H87+alloc4*Simulator!J87+alloc5*Simulator!M87) -> 1.074220186 | AM87: =IF(SUM($AM$13:AM86)<>0,0,IF(O87<0,B87-O86,0)) -> 0 | AN87: 0 | AT87: =IF(AQ87<>0,IF((AT86-B87)*(1+alloc1*Simulator!E87+alloc2*Simulator!F87+alloc3*Simulator!H87+alloc4*Simulator!J87+alloc5*Simulator!M87)<0,NA(),(AT86-B87)*(1+alloc1*Simulator!E87+alloc2*Simulator!F87+alloc3*Simulator!H87+alloc4*Simulator!J87+alloc5*Simulator!M87)),NA()) ->  | AV87: 301.534324 | AX87: 113.8153089 | AZ87: 77.15651454 | BB87: 44.32476826
A88: 76 | B88: 1348.959026 | D88: 0.06 | E88: 0.06 | F88: 0.1267844659 | G88: 0.1267844659 | H88: -0.06620136704 | I88: -0.06620136704 | J88: -0.2141705583 | K88: -0.2141705583 | L88: 0.3042171906 | M88: 0.3042171906 | O88: -51319 | P88: 5574 | Q88: 3638 | R88: 968 | S88: 927 | AD88: 76 | AL88: =(1+alloc1*Simulator!E88+alloc2*Simulator!F88+alloc3*Simulator!H88+alloc4*Simulator!J88+alloc5*Simulator!M88) -> 1.038442836 | AM88: =IF(SUM($AM$13:AM87)<>0,0,IF(O88<0,B88-O87,0)) -> 0 | AN88: 0 | AT88: =IF(AQ88<>0,IF((AT87-B88)*(1+alloc1*Simulator!E88+alloc2*Simulator!F88+alloc3*Simulator!H88+alloc4*Simulator!J88+alloc5*Simulator!M88)<0,NA(),(AT87-B88)*(1+alloc1*Simulator!E88+alloc2*Simulator!F88+alloc3*Simulator!H88+alloc4*Simulator!J88+alloc5*Simulator!M88)),NA()) ->  | AV88: 339.7641922 | AX88: 106.2805799 | AZ88: 60.63186074 | BB88: 57.80912474
A89: 77 | B89: 1456.883748 | D89: 0.06 | E89: 0.06 | F89: 0.08113386444 | G89: 0.08113386444 | H89: 0.1904603969 | I89: 0.1904603969 | J89: -0.2546245224 | K89: -0.2546245224 | L89: 0.283922402 | M89: 0.283922402 | O89: -55942 | P89: 6026 | Q89: 4331 | R89: 722 | S89: 1190 | AD89: 77 | AL89: =(1+alloc1*Simulator!E89+alloc2*Simulator!F89+alloc3*Simulator!H89+alloc4*Simulator!J89+alloc5*Simulator!M89) -> 1.079135254 | AM89: =IF(SUM($AM$13:AM88)<>0,0,IF(O89<0,B89-O88,0)) -> 0 | AN89: 0 | AT89: =IF(AQ89<>0,IF((AT88-B89)*(1+alloc1*Simulator!E89+alloc2*Simulator!F89+alloc3*Simulator!H89+alloc4*Simulator!J89+alloc5*Simulator!M89)<0,NA(),(AT88-B89)*(1+alloc1*Simulator!E89+alloc2*Simulator!F89+alloc3*Simulator!H89+alloc4*Simulator!J89+alloc5*Simulator!M89)),NA()) ->  | AV89: 367.3305741 | AX89: 126.5228213 | AZ89: 45.19350216 | BB89: 74.2224303
A90: 78 | B90: 1573.442448 | D90: 0.06 | E90: 0.06 | F90: 0.06357074015 | G90: 0.06357074015 | H90: 0.1204932026 | I90: 0.1204932026 | J90: 0.6395558146 | K90: 0.6395558146 | L90: -0.2838103165 | M90: -0.2838103165 | O90: -60966 | P90: 6409 | Q90: 4853 | R90: 1184 | S90: 852 | AD90: 78 | AL90: =(1+alloc1*Simulator!E90+alloc2*Simulator!F90+alloc3*Simulator!H90+alloc4*Simulator!J90+alloc5*Simulator!M90) -> 1.096030264 | AM90: =IF(SUM($AM$13:AM89)<>0,0,IF(O90<0,B90-O89,0)) -> 0 | AN90: 0 | AR90: =IF(AQ90=SUM(AN77:AN1176),NA(),IF(AQ90<>0,IF(SUM(O90:S90)<0,NA(),SUM(O90:S90)),NA())) ->  | AT90: =IF(AQ90<>0,IF((AT89-B90)*(1+alloc1*Simulator!E90+alloc2*Simulator!F90+alloc3*Simulator!H90+alloc4*Simulator!J90+alloc5*Simulator!M90)<0,NA(),(AT89-B90)*(1+alloc1*Simulator!E90+alloc2*Simulator!F90+alloc3*Simulator!H90+alloc4*Simulator!J90+alloc5*Simulator!M90)),NA()) ->  | AV90: 390.6820506 | AX90: 141.7679613 | AZ90: 74.09726925 | BB90: 53.15733886
A91: 79 | B91: 1699.325844 | D91: 0.06 | E91: 0.06 | F91: 0.07331922053 | G91: 0.07331922053 | H91: 0.1628058577 | I91: 0.1628058577 | J91: -0.5515268141 | K91: -0.5515268141 | L91: 0.262284949 | M91: 0.262284949 | O91: -66425 | P91: 6879 | Q91: 5643 | R91: 531 | S91: 1075 | AD91: 79 | AL91: =(1+alloc1*Simulator!E91+alloc2*Simulator!F91+alloc3*Simulator!H91+alloc4*Simulator!J91+alloc5*Simulator!M91) -> 1.040968907 | AM91: =IF(SUM($AM$13:AM90)<>0,0,IF(O91<0,B91-O90,0)) -> 0 | AN91: 0 | AT91: =IF(AQ91<>0,IF((AT90-B91)*(1+alloc1*Simulator!E91+alloc2*Simulator!F91+alloc3*Simulator!H91+alloc4*Simulator!J91+alloc5*Simulator!M91)<0,NA(),(AT90-B91)*(1+alloc1*Simulator!E91+alloc2*Simulator!F91+alloc3*Simulator!H91+alloc4*Simulator!J91+alloc5*Simulator!M91)),NA()) ->  | AV91: 419.326554 | AX91: 164.8486158 | AZ91: 33.23063841 | BB91: 67.09970877
A92: 80 | B92: 1835.279911 | D92: 0.06 | E92: 0.06 | F92: 0.09354886568 | G92: 0.09354886568 | H92: 0.02439463343 | I92: 0.02439463343 | J92: -0.1325394923 | K92: -0.1325394923 | L92: 0.04023492793 | M92: 0.04023492793 | O92: -72356 | P92: 7523 | Q92: 5781 | R92: 461 | S92: 1118 | AD92: 80 | AL92: =(1+alloc1*Simulator!E92+alloc2*Simulator!F92+alloc3*Simulator!H92+alloc4*Simulator!J92+alloc5*Simulator!M92) -> 1.035003357 | AM92: =IF(SUM($AM$13:AM91)<>0,0,IF(O92<0,B92-O91,0)) -> 0 | AN92: 0 | AT92: =IF(AQ92<>0,IF((AT91-B92)*(1+alloc1*Simulator!E92+alloc2*Simulator!F92+alloc3*Simulator!H92+alloc4*Simulator!J92+alloc5*Simulator!M92)<0,NA(),(AT91-B92)*(1+alloc1*Simulator!E92+alloc2*Simulator!F92+alloc3*Simulator!H92+alloc4*Simulator!J92+alloc5*Simulator!M92)),NA()) ->  | AV92: 458.5540775 | AX92: 168.8700373 | AZ92: 28.82626646 | BB92: 69.79946072
A93: 81 | B93: 1982.110304 | D93: 0.06 | E93: 0.06 | F93: 0.07244619719 | G93: 0.07244619719 | H93: 0.1410666266 | I93: 0.1410666266 | J93: 0.2718483513 | K93: 0.2718483513 | L93: 0.3443557371 | M93: 0.3443557371 | O93: -78798 | P93: 8068 | Q93: 6597 | R93: 586 | S93: 1503 | AD93: 81 | AL93: =(1+alloc1*Simulator!E93+alloc2*Simulator!F93+alloc3*Simulator!H93+alloc4*Simulator!J93+alloc5*Simulator!M93) -> 1.127078354 | AM93: =IF(SUM($AM$13:AM92)<>0,0,IF(O93<0,B93-O92,0)) -> 0 | AN93: 0 | AT93: =IF(AQ93<>0,IF((AT92-B93)*(1+alloc1*Simulator!E93+alloc2*Simulator!F93+alloc3*Simulator!H93+alloc4*Simulator!J93+alloc5*Simulator!M93)<0,NA(),(AT92-B93)*(1+alloc1*Simulator!E93+alloc2*Simulator!F93+alloc3*Simulator!H93+alloc4*Simulator!J93+alloc5*Simulator!M93)),NA()) ->  | AV93: 491.7745766 | AX93: 192.6919638 | AZ93: 36.66263947 | BB93: 93.83530547
A94: 82 | B94: 2140.687128 | D94: 0.06 | E94: 0.06 | F94: 0.05180343531 | G94: 0.05180343531 | H94: 0.2055146412 | I94: 0.2055146412 | J94: -0.8519963132 | K94: -0.8519963132 | L94: -0.2013452067 | M94: -0.2013452067 | O94: -85795 | P94: 8486 | Q94: 7953 | R94: 87 | S94: 1200 | AD94: 82 | AL94: =(1+alloc1*Simulator!E94+alloc2*Simulator!F94+alloc3*Simulator!H94+alloc4*Simulator!J94+alloc5*Simulator!M94) -> 0.9709491198 | AM94: =IF(SUM($AM$13:AM93)<>0,0,IF(O94<0,B94-O93,0)) -> 0 | AN94: 0 | AT94: =IF(AQ94<>0,IF((AT93-B94)*(1+alloc1*Simulator!E94+alloc2*Simulator!F94+alloc3*Simulator!H94+alloc4*Simulator!J94+alloc5*Simulator!M94)<0,NA(),(AT93-B94)*(1+alloc1*Simulator!E94+alloc2*Simulator!F94+alloc3*Simulator!H94+alloc4*Simulator!J94+alloc5*Simulator!M94)),NA()) ->  | AV94: 517.2501891 | AX94: 232.2929837 | AZ94: 5.426205811 | BB94: 74.94201649
A95: 83 | B95: 2311.950098 | D95: 0.06 | E95: 0.06 | F95: 0.08488683433 | G95: 0.08488683433 | H95: 0.1389769055 | I95: 0.1389769055 | J95: 0.1242476204 | K95: 0.1242476204 | L95: 0.1751192172 | M95: 0.1751192172 | O95: -93393 | P95: 9206 | Q95: 9058 | R95: 98 | S95: 1410 | AD95: 83 | AL95: =(1+alloc1*Simulator!E95+alloc2*Simulator!F95+alloc3*Simulator!H95+alloc4*Simulator!J95+alloc5*Simulator!M95) -> 1.096220748 | AM95: =IF(SUM($AM$13:AM94)<>0,0,IF(O95<0,B95-O94,0)) -> 0 | AN95: 0 | AT95: =IF(AQ95<>0,IF((AT94-B95)*(1+alloc1*Simulator!E95+alloc2*Simulator!F95+alloc3*Simulator!H95+alloc4*Simulator!J95+alloc5*Simulator!M95)<0,NA(),(AT94-B95)*(1+alloc1*Simulator!E95+alloc2*Simulator!F95+alloc3*Simulator!H95+alloc4*Simulator!J95+alloc5*Simulator!M95)),NA()) ->  | AV95: 561.1579202 | AX95: 264.5763437 | AZ95: 6.10039897 | BB95: 88.06580376
A96: 84 | B96: 2496.914106 | D96: 0.06 | E96: 0.06 | F96: 0.1127217357 | G96: 0.1127217357 | H96: 0.3649846135 | I96: 0.3649846135 | J96: -0.04780958746 | K96: -0.04780958746 | L96: 0.6968755797 | M96: 0.6968755797 | O96: -101643 | P96: 10244 | Q96: 12364 | R96: 93 | S96: 2393 | AD96: 84 | AL96: =(1+alloc1*Simulator!E96+alloc2*Simulator!F96+alloc3*Simulator!H96+alloc4*Simulator!J96+alloc5*Simulator!M96) -> 1.179175695 | AM96: =IF(SUM($AM$13:AM95)<>0,0,IF(O96<0,B96-O95,0)) -> 0 | AN96: 0 | AT96: =IF(AQ96<>0,IF((AT95-B96)*(1+alloc1*Simulator!E96+alloc2*Simulator!F96+alloc3*Simulator!H96+alloc4*Simulator!J96+alloc5*Simulator!M96)<0,NA(),(AT95-B96)*(1+alloc1*Simulator!E96+alloc2*Simulator!F96+alloc3*Simulator!H96+alloc4*Simulator!J96+alloc5*Simulator!M96)),NA()) ->  | AV96: 624.412615 | AX96: 361.1426382 | AZ96: 5.808741412 | BB96: 149.4367118
A97: 85 | B97: 2696.675235 | D97: 0.06 | E97: 0.06 | F97: 0.07774430642 | G97: 0.07774430642 | H97: -0.02400587882 | I97: -0.02400587882 | J97: -0.5904168749 | K97: -0.5904168749 | L97: -0.4611618242 | M97: -0.4611618242 | O97: -110600 | P97: 11040 | Q97: 12067 | R97: 38 | S97: 1289 | AD97: 85 | AL97: =(1+alloc1*Simulator!E97+alloc2*Simulator!F97+alloc3*Simulator!H97+alloc4*Simulator!J97+alloc5*Simulator!M97) -> 0.927815385 | AM97: =IF(SUM($AM$13:AM96)<>0,0,IF(O97<0,B97-O96,0)) -> 0 | AN97: 0 | AT97: =IF(AQ97<>0,IF((AT96-B97)*(1+alloc1*Simulator!E97+alloc2*Simulator!F97+alloc3*Simulator!H97+alloc4*Simulator!J97+alloc5*Simulator!M97)<0,NA(),(AT96-B97)*(1+alloc1*Simulator!E97+alloc2*Simulator!F97+alloc3*Simulator!H97+alloc4*Simulator!J97+alloc5*Simulator!M97)),NA()) ->  | AV97: 672.9571407 | AX97: 352.4730918 | AZ97: 2.37916246 | BB97: 80.52220518
A98: 86 | B98: 2912.417254 | D98: 0.06 | E98: 0.06 | F98: 0.05054984899 | G98: 0.05054984899 | H98: 0.04857747298 | I98: 0.04857747298 | J98: 0.08525848232 | K98: 0.08525848232 | L98: 0.0826500557 | M98: 0.0826500557 | O98: -120323 | P98: 11598 | Q98: 12653 | R98: 41 | S98: 1396 | AD98: 86 | AL98: =(1+alloc1*Simulator!E98+alloc2*Simulator!F98+alloc3*Simulator!H98+alloc4*Simulator!J98+alloc5*Simulator!M98) -> 1.061561333 | AM98: =IF(SUM($AM$13:AM97)<>0,0,IF(O98<0,B98-O97,0)) -> 0 | AN98: 0 | AT98: =IF(AQ98<>0,IF((AT97-B98)*(1+alloc1*Simulator!E98+alloc2*Simulator!F98+alloc3*Simulator!H98+alloc4*Simulator!J98+alloc5*Simulator!M98)<0,NA(),(AT97-B98)*(1+alloc1*Simulator!E98+alloc2*Simulator!F98+alloc3*Simulator!H98+alloc4*Simulator!J98+alloc5*Simulator!M98)),NA()) ->  | AV98: 706.9750225 | AX98: 369.5953439 | AZ98: 2.582006241 | BB98: 87.17736992
A99: 87 | B99: 3145.418634 | D99: 0.06 | E99: 0.06 | F99: 0.1292861763 | G99: 0.1292861763 | H99: 0.08657908704 | I99: 0.08657908704 | J99: 0.4793438439 | K99: 0.4793438439 | L99: -0.2070749357 | M99: -0.2070749357 | O99: -130877 | P99: 13097 | Q99: 13748 | R99: 61 | S99: 1107 | AD99: 87 | AL99: =(1+alloc1*Simulator!E99+alloc2*Simulator!F99+alloc3*Simulator!H99+alloc4*Simulator!J99+alloc5*Simulator!M99) -> 1.087471326 | AM99: =IF(SUM($AM$13:AM98)<>0,0,IF(O99<0,B99-O98,0)) -> 0 | AN99: 0 | AT99: =IF(AQ99<>0,IF((AT98-B99)*(1+alloc1*Simulator!E99+alloc2*Simulator!F99+alloc3*Simulator!H99+alloc4*Simulator!J99+alloc5*Simulator!M99)<0,NA(),(AT98-B99)*(1+alloc1*Simulator!E99+alloc2*Simulator!F99+alloc3*Simulator!H99+alloc4*Simulator!J99+alloc5*Simulator!M99)),NA()) ->  | AV99: 798.3771199 | AX99: 401.5945714 | AZ99: 3.819675038 | BB99: 69.12512165
A100: 88 | B100: 3397.060125 | D100: 0.06 | E100: 0.06 | F100: 0.07426354792 | G100: 0.07426354792 | H100: 0.2955782931 | I100: 0.2955782931 | J100: 0.1017663892 | K100: 0.1017663892 | L100: 0.5791457321 | M100: 0.5791457321 | O100: -142331 | P100: 14070 | Q100: 17812 | R100: 67 | S100: 1748 | AD100: 88 | AL100: =(1+alloc1*Simulator!E100+alloc2*Simulator!F100+alloc3*Simulator!H100+alloc4*Simulator!J100+alloc5*Simulator!M100) -> 1.164633226 | AM100: =IF(SUM($AM$13:AM99)<>0,0,IF(O100<0,B100-O99,0)) -> 0 | AN100: 0 | AT100: =IF(AQ100<>0,IF((AT99-B100)*(1+alloc1*Simulator!E100+alloc2*Simulator!F100+alloc3*Simulator!H100+alloc4*Simulator!J100+alloc5*Simulator!M100)<0,NA(),(AT99-B100)*(1+alloc1*Simulator!E100+alloc2*Simulator!F100+alloc3*Simulator!H100+alloc4*Simulator!J100+alloc5*Simulator!M100)),NA()) ->  | AV100: 857.6674374 | AX100: 520.2972093 | AZ100: 4.208389574 | BB100: 109.1586408
A101: 89 | B101: 3668.832935 | D101: 0.06 | E101: 0.06 | F101: 0.07598763258 | G101: 0.07598763258 | H101: 0.05964454121 | I101: 0.05964454121 | J101: 0.2178416367 | K101: 0.2178416367 | L101: 0.3356609441 | M101: 0.3356609441 | O101: -154760 | P101: 15139 | Q101: 18874 | R101: 82 | S101: 2335 | AD101: 89 | AL101: =(1+alloc1*Simulator!E101+alloc2*Simulator!F101+alloc3*Simulator!H101+alloc4*Simulator!J101+alloc5*Simulator!M101) -> 1.10487793 | AM101: =IF(SUM($AM$13:AM100)<>0,0,IF(O101<0,B101-O100,0)) -> 0 | AN101: 0 | AT101: =IF(AQ101<>0,IF((AT100-B101)*(1+alloc1*Simulator!E101+alloc2*Simulator!F101+alloc3*Simulator!H101+alloc4*Simulator!J101+alloc5*Simulator!M101)<0,NA(),(AT100-B101)*(1+alloc1*Simulator!E101+alloc2*Simulator!F101+alloc3*Simulator!H101+alloc4*Simulator!J101+alloc5*Simulator!M101)),NA()) ->  | AV101: 922.8395555 | AX101: 551.3300976 | AZ101: 5.125152047 | BB101: 145.7989333
A102: 90 | B102: 3962.347569 | D102: 0.06 | E102: 0.06 | F102: 0.08691644451 | G102: 0.08691644451 | H102: 0.06388315244 | I102: 0.06388315244 | J102: 0.04938751231 | K102: 0.04938751231 | L102: -0.4770397998 | M102: -0.4770397998 | O102: -168246 | P102: 16455 | Q102: 20080 | R102: 86 | S102: 1221 | AD102: 90 | AL102: =(1+alloc1*Simulator!E102+alloc2*Simulator!F102+alloc3*Simulator!H102+alloc4*Simulator!J102+alloc5*Simulator!M102) -> 1.008703046 | AM102: =IF(SUM($AM$13:AM101)<>0,0,IF(O102<0,B102-O101,0)) -> 0 | AN102: 0 | AT102: =IF(AQ102<>0,IF((AT101-B102)*(1+alloc1*Simulator!E102+alloc2*Simulator!F102+alloc3*Simulator!H102+alloc4*Simulator!J102+alloc5*Simulator!M102)<0,NA(),(AT101-B102)*(1+alloc1*Simulator!E102+alloc2*Simulator!F102+alloc3*Simulator!H102+alloc4*Simulator!J102+alloc5*Simulator!M102)),NA()) ->  | AV102: 1003.049489 | AX102: 586.5508023 | AZ102: 5.378270557 | BB102: 76.24703933
A103: 91 | B103: 4279.343375 | D103: 0.06 | E103: 0.06 | F103: 0.06998708756 | G103: 0.06998708756 | H103: 0.07231090077 | I103: 0.07231090077 | J103: 0.03452397499 | K103: 0.03452397499 | L103: -0.3340748986 | M103: -0.3340748986 | O103: -182877 | P103: 17607 | Q103: 21532 | R103: 89 | S103: 813 | AD103: 91 | AL103: =(1+alloc1*Simulator!E103+alloc2*Simulator!F103+alloc3*Simulator!H103+alloc4*Simulator!J103+alloc5*Simulator!M103) -> 1.021505797 | AM103: =IF(SUM($AM$13:AM102)<>0,0,IF(O103<0,B103-O102,0)) -> 0 | AN103: 0 | AT103: =IF(AQ103<>0,IF((AT102-B103)*(1+alloc1*Simulator!E103+alloc2*Simulator!F103+alloc3*Simulator!H103+alloc4*Simulator!J103+alloc5*Simulator!M103)<0,NA(),(AT102-B103)*(1+alloc1*Simulator!E103+alloc2*Simulator!F103+alloc3*Simulator!H103+alloc4*Simulator!J103+alloc5*Simulator!M103)),NA()) ->  | AV103: 1073.250001 | AX103: 628.9648191 | AZ103: 5.563949835 | BB103: 50.7748174
A104: 92 | B104: 4621.698845 | D104: 0.06 | E104: 0.06 | F104: 0.08119398135 | G104: 0.08119398135 | H104: 0.1611553946 | I104: 0.1611553946 | J104: 0.3982608261 | K104: 0.3982608261 | L104: -0.2725303919 | M104: -0.2725303919 | O104: -198749 | P104: 19037 | Q104: 25002 | R104: 124 | S104: 591 | AD104: 92 | AL104: =(1+alloc1*Simulator!E104+alloc2*Simulator!F104+alloc3*Simulator!H104+alloc4*Simulator!J104+alloc5*Simulator!M104) -> 1.08292352 | AM104: =IF(SUM($AM$13:AM103)<>0,0,IF(O104<0,B104-O103,0)) -> 0 | AN104: 0 | AT104: =IF(AQ104<>0,IF((AT103-B104)*(1+alloc1*Simulator!E104+alloc2*Simulator!F104+alloc3*Simulator!H104+alloc4*Simulator!J104+alloc5*Simulator!M104)<0,NA(),(AT103-B104)*(1+alloc1*Simulator!E104+alloc2*Simulator!F104+alloc3*Simulator!H104+alloc4*Simulator!J104+alloc5*Simulator!M104)),NA()) ->  | AV104: 1160.391441 | AX104: 730.3258928 | AZ104: 7.779853092 | BB104: 36.93713651
A105: 93 | B105: 4991.442753 | D105: 0.06 | E105: 0.06 | F105: 0.05123346776 | G105: 0.05123346776 | H105: 0.004466305587 | I105: 0.004466305587 | J105: -0.3584172373 | K105: -0.3584172373 | L105: 1.129910974 | M105: 1.129910974 | O105: -215965 | P105: 20012 | Q105: 25114 | R105: 80 | S105: 1259 | AD105: 93 | AL105: =(1+alloc1*Simulator!E105+alloc2*Simulator!F105+alloc3*Simulator!H105+alloc4*Simulator!J105+alloc5*Simulator!M105) -> 1.113165982 | AM105: =IF(SUM($AM$13:AM104)<>0,0,IF(O105<0,B105-O104,0)) -> 0 | AN105: 0 | AT105: =IF(AQ105<>0,IF((AT104-B105)*(1+alloc1*Simulator!E105+alloc2*Simulator!F105+alloc3*Simulator!H105+alloc4*Simulator!J105+alloc5*Simulator!M105)<0,NA(),(AT104-B105)*(1+alloc1*Simulator!E105+alloc2*Simulator!F105+alloc3*Simulator!H105+alloc4*Simulator!J105+alloc5*Simulator!M105)),NA()) ->  | AV105: 1219.842319 | AX105: 733.5877514 | AZ105: 4.99141964 | BB105: 78.67281239
A106: 94 | B106: 5390.766173 | D106: 0.06 | E106: 0.06 | F106: 0.08904525355 | G106: 0.08904525355 | H106: -0.1312933659 | I106: -0.1312933659 | J106: -0.05273612654 | K106: -0.05273612654 | L106: 1.334439131 | M106: 1.334439131 | O106: -234637 | P106: 21794 | Q106: 21817 | R106: 76 | S106: 2939 | AD106: 94 | AL106: =(1+alloc1*Simulator!E106+alloc2*Simulator!F106+alloc3*Simulator!H106+alloc4*Simulator!J106+alloc5*Simulator!M106) -> 1.140816153 | AM106: =IF(SUM($AM$13:AM105)<>0,0,IF(O106<0,B106-O105,0)) -> 0 | AN106: 0 | AT106: =IF(AQ106<>0,IF((AT105-B106)*(1+alloc1*Simulator!E106+alloc2*Simulator!F106+alloc3*Simulator!H106+alloc4*Simulator!J106+alloc5*Simulator!M106)<0,NA(),(AT105-B106)*(1+alloc1*Simulator!E106+alloc2*Simulator!F106+alloc3*Simulator!H106+alloc4*Simulator!J106+alloc5*Simulator!M106)),NA()) ->  | AV106: 1328.463488 | AX106: 637.2725463 | AZ106: 4.728191503 | BB106: 183.6568918
A107: 95 | B107: 5822.035467 | D107: 0.06 | E107: 0.06 | F107: 0.08133898512 | G107: 0.08133898512 | H107: 0.06092420745 | I107: 0.06092420745 | J107: 0.5450252699 | K107: 0.5450252699 | L107: 0.1021192711 | M107: 0.1021192711 | O107: -254887 | P107: 23567 | Q107: 23146 | R107: 117 | S107: 3239 | AD107: 95 | AL107: =(1+alloc1*Simulator!E107+alloc2*Simulator!F107+alloc3*Simulator!H107+alloc4*Simulator!J107+alloc5*Simulator!M107) -> 1.115033194 | AM107: =IF(SUM($AM$13:AM106)<>0,0,IF(O107<0,B107-O106,0)) -> 0 | AN107: 0 | AT107: =IF(AQ107<>0,IF((AT106-B107)*(1+alloc1*Simulator!E107+alloc2*Simulator!F107+alloc3*Simulator!H107+alloc4*Simulator!J107+alloc5*Simulator!M107)<0,NA(),(AT106-B107)*(1+alloc1*Simulator!E107+alloc2*Simulator!F107+alloc3*Simulator!H107+alloc4*Simulator!J107+alloc5*Simulator!M107)),NA()) ->  | AV107: 1436.519359 | AX107: 676.0978711 | AZ107: 7.305175353 | BB107: 202.4117997
A108: 96 | B108: 6287.806304 | D108: 0.06 | E108: 0.06 | F108: 0.1151581297 | G108: 0.1151581297 | H108: 0.2986533599 | I108: 0.2986533599 | J108: -0.242103904 | K108: -0.242103904 | L108: 1.176366102 | M108: 1.176366102 | O108: -276845 | P108: 26281 | Q108: 30059 | R108: 89 | S108: 7049 | AD108: 96 | AL108: =(1+alloc1*Simulator!E108+alloc2*Simulator!F108+alloc3*Simulator!H108+alloc4*Simulator!J108+alloc5*Simulator!M108) -> 1.194672705 | AM108: =IF(SUM($AM$13:AM107)<>0,0,IF(O108<0,B108-O107,0)) -> 0 | AN108: 0 | AT108: =IF(AQ108<>0,IF((AT107-B108)*(1+alloc1*Simulator!E108+alloc2*Simulator!F108+alloc3*Simulator!H108+alloc4*Simulator!J108+alloc5*Simulator!M108)<0,NA(),(AT107-B108)*(1+alloc1*Simulator!E108+alloc2*Simulator!F108+alloc3*Simulator!H108+alloc4*Simulator!J108+alloc5*Simulator!M108)),NA()) ->  | AV108: 1601.946242 | AX108: 878.0167719 | AZ108: 5.53656388 | BB108: 440.5221795
A109: 97 | B109: =(prepen1*(1+rinf)^(A109-1)/100000)-(pension/100000)-(income*(1+incrate)^(A109-1)/100000) -> 6790.838808 | D109: =IF(E109<>"",E109,_min1) -> 0.06 | E109: 0.06 | F109: 0.07794588703 | G109: =IF(F109<>"",F109,NORMINV(RAND(),mean2,stdev2)) -> 0.07794588703 | H109: 0.03414177418 | I109: =IF(H109<>"",H109,NORMINV(RAND(),mean3,stdev3)) -> 0.03414177418 | J109: 0.2386972065 | K109: =IF(J109<>"",J109,NORMINV(RAND(),mean4,stdev4)) -> 0.2386972065 | L109: =IF(M109<>"",M109,NORMINV(RAND(),mean5,stdev5)) -> 0.5696780243 | M109: 0.5696780243 | O109: -300654 | P109: 28329 | Q109: 31085 | R109: 110 | S109: 11065 | AD109: 97 | AL109: =(1+alloc1*Simulator!E109+alloc2*Simulator!F109+alloc3*Simulator!H109+alloc4*Simulator!J109+alloc5*Simulator!M109) -> 1.125460467 | AM109: =IF(SUM($AM$13:AM108)<>0,0,IF(O109<0,B109-O108,0)) -> 0 | AN109: 0 | AT109: =IF(AQ109<>0,IF((AT108-B109)*(1+alloc1*Simulator!E109+alloc2*Simulator!F109+alloc3*Simulator!H109+alloc4*Simulator!J109+alloc5*Simulator!M109)<0,NA(),(AT108-B109)*(1+alloc1*Simulator!E109+alloc2*Simulator!F109+alloc3*Simulator!H109+alloc4*Simulator!J109+alloc5*Simulator!M109)),NA()) ->  | AV109: 1726.811363 | AX109: 907.9938223 | AZ109: 6.858126212 | BB109: 691.4779844
A110: 98 | B110: 7334.113913 | D110: =IF(E110<>"",E110,_min1) -> 0.06 | E110: 0.06 | F110: 0.0853630387 | G110: =IF(F110<>"",F110,NORMINV(RAND(),mean2,stdev2)) -> 0.0853630387 | H110: 0.01190856918 | I110: =IF(H110<>"",H110,NORMINV(RAND(),mean3,stdev3)) -> 0.01190856918 | J110: -0.6310887181 | K110: =IF(J110<>"",J110,NORMINV(RAND(),mean4,stdev4)) -> -0.6310887181 | L110: =IF(M110<>"",M110,NORMINV(RAND(),mean5,stdev5)) -> -0.5547379678 | M110: -0.5547379678 | O110: -326467 | P110: 30747 | Q110: 31455 | R110: 41 | S110: 4927 | AD110: 98 | AL110: =(1+alloc1*Simulator!E110+alloc2*Simulator!F110+alloc3*Simulator!H110+alloc4*Simulator!J110+alloc5*Simulator!M110) -> 0.9223353491 | AM110: =IF(SUM($AM$13:AM109)<>0,0,IF(O110<0,B110-O109,0)) -> 0 | AN110: 0 | AT110: =IF(AQ110<>0,IF((AT109-B110)*(1+alloc1*Simulator!E110+alloc2*Simulator!F110+alloc3*Simulator!H110+alloc4*Simulator!J110+alloc5*Simulator!M110)<0,NA(),(AT109-B110)*(1+alloc1*Simulator!E110+alloc2*Simulator!F110+alloc3*Simulator!H110+alloc4*Simulator!J110+alloc5*Simulator!M110)),NA()) ->  | AV110: 1874.217228 | AX110: 918.8067295 | AZ110: 2.530040133 | BB110: 307.8888925
A111: 99 | B111: 7920.851026 | D111: =IF(E111<>"",E111,_min1) -> 0.06 | E111: 0.06 | F111: 0.04451167921 | G111: =IF(F111<>"",F111,NORMINV(RAND(),mean2,stdev2)) -> 0.04451167921 | H111: 0.02403864055 | I111: =IF(H111<>"",H111,NORMINV(RAND(),mean3,stdev3)) -> 0.02403864055 | J111: -0.1350089133 | K111: =IF(J111<>"",J111,NORMINV(RAND(),mean4,stdev4)) -> -0.1350089133 | L111: =IF(M111<>"",M111,NORMINV(RAND(),mean5,stdev5)) -> 1.305027583 | M111: 1.305027583 | O111: -354451 | P111: 32116 | Q111: 32211 | R111: 35 | S111: 11357 | AD111: 99 | AL111: =(1+alloc1*Simulator!E111+alloc2*Simulator!F111+alloc3*Simulator!H111+alloc4*Simulator!J111+alloc5*Simulator!M111) -> 1.156260763 | AM111: =IF(SUM($AM$13:AM110)<>0,0,IF(O111<0,B111-O110,0)) -> 0 | AN111: 0 | AT111: =IF(AQ111<>0,IF((AT110-B111)*(1+alloc1*Simulator!E111+alloc2*Simulator!F111+alloc3*Simulator!H111+alloc4*Simulator!J111+alloc5*Simulator!M111)<0,NA(),(AT110-B111)*(1+alloc1*Simulator!E111+alloc2*Simulator!F111+alloc3*Simulator!H111+alloc4*Simulator!J111+alloc5*Simulator!M111)),NA()) ->  | AV111: 1957.641784 | AX111: 940.8935942 | AZ111: 2.188462164 | BB111: 709.6923899

Sheet Example results

Sheet Read me whenever!
A1: Background and Motivation
A2: Mr. P V Subramanyam (subramoney.com) introduced the idea of retirement buckets and urged me to a build a calculator. When I looked around for
A3: what was available I first ound a terrific free version offered by ISG Planning (and stopped looking!)
A4: This simulator is inspired by and influenced by the free Investment Income Simulator available at | J4: ISG Planning
A5: That said the simulator has been bulit independently from the ground-up. Why do this when something is already available for free? I believe my version offers
A6: additional flexibility and features. These include:
A7: 1. an extra investment bucket with information on how long the initial allocation to bucket 1 will last.
A8: 2. a standard retirment calculator and comparison with the bucket stratergy
A9: 3. Choice of defining the volatility in each bucket
A10: 4. Choice of including annuity and additonal income
A11: Some useful features in the ISG version are not (yet!) available. There are also some differences. For example:
A12: a. Correlation among the different kind of stocks
A13: b. Dividends from stocks is not considered
A14: c. The exact nature of the Monte Carlo simulation used by ISG is not known. I have simply used random returns that obey a Normal distribution without any averaging
A15: Sometimes the random returns may not reflect historic market trends. As this is only a informative and practice tool I don't intende to change this unless there is interest from users
A16: d. Of course the ISG version is way more better looking and user friendly than mine. However I am not going to lose sleep over this.
A17: I made this calculator because I believe diversification (ie. Additional buckets) with a wide range in volatility maybe necessary to combat high inflation rates that prevail in India.
A19: Remember: This is a work in progress. I have tried this out several times to weed out errors. No guarantees can however be made that it is error free. If you find a bug kindly bring it to my notice.
A21: Is it correct to use software to predict market returns? Is the math behind this a proven one?
A22: I don't care! Forgive me for soudning a tad irresponsible. This is the only stand to take when there is no universal agreement on which model
A23: (Monte Carlo or Historical) to use for returns and which distribution to use or whether to use one at all!
A24: This is a practice tool and not a calculator. It models a situation with different volatilites and prepares you for handling your retirement corpus.
A25: The more times you play it the better you get. This is not a tool that claims to mimic market conditions. I don't think any toolmaker can make that claim
A26: The bottomline: My idea of making this calculator is to introduce a technique which if used properly might (only might) be a more
A27: efficient way of managing a retirement corpus. Is this suitable for everyone? Unfortunately no. Some experience in at least handling mutual fund investments maybe necessary.
A28: A financial planner with experience in handling retirment buckets would certainly help. Finding one is another matter
A31: Note on error: "You don't have enough funds in Bucket 5 to make this transfer! If didn't want to make a transfer please see the 'Notes' sheet!"
A32: If you got this error and didn't want to make a transfer it means that the returns next year will wipe out the balance in the concerned bucket!
A33: As of now you don’t have a choice but to start all over again. You could of course transfer the balance and proceed. The error will go away but
A34: that is like predicting the future and hence cheating!
